{"text_format":"1","workbook":"xlsx","n_sheets":9,"sheets":["InputSheet","DeviceCalculator","6A_SchematicChecklist","6A_LayoutChecklist","Std. R and C Values","Extra","partData","revisionNotes","Disclaimer"],"not_rendered":{"charts":0,"images":5,"macros":1,"external_links":2,"defined_names":168,"comments":1,"pivot_tables":0},"unopened":[],"bounds":{"document_bytes":16777216,"sheet_cells":100000,"rows_first":2000,"rows_last":500,"rows_between":2000,"halvings":0,"cell_chars":16384,"cell_head_chars":4096},"cells_cut":0,"cells_raw":0,"read":"whole","date_system":"1900"}

{"sheet":"InputSheet","index":0,"n_rows":61,"n_cols":8,"rows_kept":61,"cut":false,"hidden":false,"merged":[]}
["Parameter","Units","Type","Default",null,null,"end"]
["Rail Name",null,"Req",null,"TPS548C26EVM"]
["Part Number",null,"Req",null,"TPS548C26"]
["Vin_min","V","Opt","Vin_nom*0.8",4.5]
["Vin_nom","V","Req",null,12,null,null,"Directions:"]
["Vin_max","V","Opt","Vin_nom*1.1",18,null,null,"Check/Calculate Selected Column"]
["Vout","V","Req",null,3.3,null,null,"Select any cell in the column of the design you would like to check."]
["Iout","A","Opt","Io_max_IC",35,null,null,"Click on the Check/Calculate to send the input values to the DeviceCalculator worksheet."]
["dVo_ripple_perc",null,"Opt",0.01,0.01,null,null,"The calculated results on the DeviceCalculator worksheet are then pulled back to check the design."]
["dVo_trans_perc",null,"Opt",0.04,2.5000000000000001E-2]
["Io_step","A","Opt","Iout*0.5",{"$f":"E8/4","v":8.75},null,null,"Insert New Design"]
["Slewrate_Io_step","A/µs","Opt",10,10,null,null,"Click on Insert New Design to add another column to check another design."]
["fsw_input",null,"Req",null,600,null,null,"To delete a design that is no longer needed, right click on the column letter then select delete."]
["LL_mode_input",null,"Req",null,"DCM"]
["fsw_select","kHz","Calc",null,600,null,null,"Pull Values from DeviceCalculator Sheet"]
["LL_mode_select",null,"Calc",null,"DCM",null,null,"The DeviceCalculator worksheet has more details to aid in the design."]
["Lout","µH","Opt","L_rec",0.4,null,null,"Updates to the design can be mode in the DeviceCalculator sheet."]
["DCR","mΩ","Opt","Rdson_LS",0.8,null,null,"After making updates, click on Pull Values to use the values on the DeviceCalculator sheet and check them."]
["Tol_L",null,"Opt",0.2,0.2]
["I_lim_sel","kΩ","Req",null,39,null,null,"Check/Calculate All Columns"]
["R_I2C_rec"]
["Io_max_min","A","Calc",null,42.118229166666666,null,null,"This will run Check/Calculate Selected Column on all designs"]
["N_cer",null,"Opt",1,6]
["Cout_single_cer","µF","Opt","Cout_min",22]
["ESR_single_cer","mΩ","Opt",1,5]
["Cer_derating",null,"Opt",0.8,0.6]
["N_bulk",null,"Opt",0,2]
["Cout_single_bulk","µF","Opt",0.1,220]
["ESR_single_bulk","mΩ","Opt",1,10]
["Vo_undershoot","mV","Calc",null,47.389254413069324]
["Vo_overshoot","mV","Calc",null,8.93711771023019]
["Vo_ripple","mV","Calc",null,28.745281947714254]
["Vi_ripple_percent",null,"Opt",0.04,0.04]
["Cin_cer","µF","Opt","Cin_min",{"$f":"6*10","v":60}]
["Cin_derating",null,"Opt",0.5,0.5]
["Vi_ripple","mV","Calc",null,190.1234567901235]
["Iin_rms","A","Calc",null,15.496003179544925]
["Rfb_b","kΩ","Opt","Rfb_b_rec",5.36]
["Rfb_t","kΩ","Opt","Rfb_t_NSV",16.899999999999999]
["Vout_calc","V","Calc",null,3.3223880597014928]
["Cff","pF","Opt","Cff_NSV",220]
["Rff","kΩ","Opt","Rff_NSV",0]
["Css","nF","Opt",22,22]
["Tss","ms","Calc",null,{"$error":"#NAME?"}]
["Icout_ss","A","Calc",null,{"$error":"#NAME?"}]
["Ren_b","kΩ","Opt",0,47]
["Ren_t","kΩ","Opt",0,120]
["Vstart_typ","kΩ","Calc",null,4.2878297872340427]
["Vstop_typ","kΩ","Calc",null,3.5731914893617023]
["Cvcc","µF","Opt","Cvcc_rec",4.7]
["Cboot","µF","Opt","Cboot_rec",0.1]
["Rboot","Ω","Opt","Rboot_rec",0]
["Rpg","kΩ","Opt","Rpg_rec",10]
["R_mode_check",null,"Check",null,"Pass"]
["Lout_check",null,"Check",null,"Pass"]
["Rtrip_check",null,"Check",null,"Pass"]
["Cout_check",null,"Check",null,"Pass"]
["Cin_check",null,"Check",null,"Caution: Check Cin. Not enough capacitance to meet Vi_ripple_target of 180mV."]
["FB_network_check",null,"Check",null,"Caution: Check FF cap. Selected FF cap value is 0.5× the recommended value."]
["EN_divider_check",null,"Check",null,"Pass"]
["Cvcc_Cboot_Rpg_check",null,"Check",null,"Pass"]

{"sheet":"DeviceCalculator","index":1,"n_rows":169,"n_cols":10,"rows_kept":169,"cut":false,"hidden":false,"merged":[[145,1,145,7],[160,1,160,7],[124,1,124,7],[140,1,140,7],[45,1,45,7],[75,1,75,7],[74,1,74,7],[59,1,59,7],[113,1,113,7],[114,1,114,7],[156,1,156,7],[0,1,0,7],[31,1,31,7],[25,1,25,7],[7,1,7,7],[44,1,44,7],[1,1,6,1],[1,2,6,2],[1,3,6,3],[1,4,6,4],[1,5,6,5],[1,6,6,6],[1,7,6,7]]}
[null,"Design Calculations",null,null,null,null,null,null,null,"Key"]
[null,"Parameter","Input","Recommended","Selected Value","Calculated with Selected Value","Units","Description",null,"User Entered Value"]
[null,null,null,null,null,null,null,null,null,"Fixed IC Parameter/I2"]
[null,null,null,null,null,null,null,null,null,"Calculated Parameter"]
[null,null,null,null,null,null,null,null,null,"Recommended Component Value"]
[null,null,null,null,null,null,null,null,null,"Design Caution"]
[null,null,null,null,null,null,null,null,null,"Design Warning"]
[null,"Choose Device"]
[null,"Part Number","TPS548C26",null,null,null,null,"Select IC part number"]
[null,"Vin_min_bias",{"$f":"VLOOKUP($C$9,partData!$A$3:$ZZ$5,7,FALSE)","v":2.7},null,null,null,"V","IC rated minimum input voltage with external bias"]
[null,"Vin_min_IC",{"$f":"VLOOKUP($C$9,partData!$A$3:$ZZ$5,2,FALSE)","v":4},null,null,null,"V","IC rated minimum input voltage with internal bias"]
[null,"Vin_max_IC",{"$f":"VLOOKUP($C$9,partData!$A$3:$ZZ$5,3,FALSE)","v":18},null,null,null,"V","IC rated maximum input voltage"]
[null,"Vcc",{"$f":"VLOOKUP($C$9,partData!$A$3:$ZZ$5,6,FALSE)","v":4.5},null,null,null,"V","Internal VCC regulator output voltage"]
[null,"Vref",{"$f":"VLOOKUP($C$9,partData!$A$3:$ZZ$5,5,FALSE)","v":0.8},null,null,null,"V","Internal voltage reference"]
[null,"ton_min",{"$f":"VLOOKUP($C$9,partData!$A$3:$ZZ$5,10,FALSE)","v":50},null,null,null,"ns","Typical minimum on-time"]
[null,"toff_min_max",{"$f":"VLOOKUP($C$9,partData!$A$3:$ZZ$5,11,FALSE)","v":180},null,null,null,"ns","Worst case minimum off-time"]
[null,"Io_max_IC",{"$f":"VLOOKUP($C$9,partData!$A$3:$ZZ$5,4,FALSE)","v":35},null,null,null,"A","IC rated maximum output current"]
[null,"Ioc_valley_max",{"$f":"VLOOKUP($C$9,partData!$A$3:$ZZ$5,16,FALSE)","v":39},null,null,null,"A","Maximum valley current limit setting"]
[null,"Ioc_neg_max",{"$f":"VLOOKUP($C$9,partData!$A$3:$ZZ$5,17,FALSE)","v":-20},null,null,null,"A","Maximum negative current limit setting"]
[null,"OCF_response",{"$f":"VLOOKUP($C$9,partData!$A$3:$L$5,12,FALSE)","v":"Hiccup"},null,null,null,null,"Over current fault response"]
[null,"OVF_response",{"$f":"VLOOKUP($C$9,partData!$A$3:$M$5,13,FALSE)","v":"Latch Off"},null,null,null,null,"Over voltage fault response"]
[null,"Rdson_HS",{"$f":"VLOOKUP($C$9,partData!$A$3:$ZZ$5,8,FALSE)","v":4},null,null,null,"mΩ","High-side FET Rdson"]
[null,"Rdson_LS",{"$f":"VLOOKUP($C$9,partData!$A$3:$ZZ$5,9,FALSE)","v":1},null,null,null,"mΩ","Low-side FET Rdson"]
[null,"EN_rise",{"$f":"VLOOKUP($C$9,partData!$A$3:$ZZ$5,14,FALSE)","v":1.2},null,null,null,"V","EN rising voltage threshold"]
[null,"EN_fall",{"$f":"VLOOKUP($C$9,partData!$A$3:$ZZ$5,15,FALSE)","v":1},null,null,null,"V","EN falling voltage threshold"]
[null,"Input System Parameters"]
[null,"Vin_min",9.6,null,null,null,"V","Minimum input voltage"]
[null,"Vin_nom",12,null,null,null,"V","Nominal input voltage"]
[null,"Vin_max",13.2,null,null,null,"V","Maximum input voltage"]
[null,"Vout",5.0999999999999996,null,null,null,"V","Output voltage"]
[null,"Iout",20,null,null,null,"A","Maximum output current"]
[null,{"$f":"CONCATENATE(\"Select the Switching Frequency and Light Load operation mode (\", IF(partData!C15=partData!B10,\"MODE pin\",partData!C15), \")\")","v":"Select the Switching Frequency and Light Load operation mode (MODE pin)"}]
[null,"fsw_input",800,null,null,null,"kHz","Input desired fsw option"]
[null,"LL_mode_input","FCCM",null,null,null,null,"Input desired light load operation mode"]
[null,"fsw_max_ton",null,{"$f":"Vout/Vin_max*1/(ton_min_sec)*0.001","v":7727.272727272727},null,null,"kHz","Maximum fsw limited by Vin_max and minimum on-time"]
[null,"fsw_max_toff",null,{"$f":"(Vin_min-Vout-Iout*2*(DCR_Ohm+Rdson_HS_Ohm))/(toff_min_max_sec*(Vin_min-Iout*2*(Rdson_HS_Ohm-Rdson_LS_Ohm)))*10^-3","v":2304.5710267229251},null,null,"kHz","Maximum fsw allowed limited by Vin_min and minimum off-time (Depends on inductor DCR and includes 2x multiplier on resistance for margin)"]
[null,"R_mode_rec",null,{"$f":"IF(OR(PartNumber=\"TPS544C27\",PartNumber=\"TPS548C26\"),VLOOKUP(CONCATENATE(C33,C34),partData!E18:H26,4,0),partData!C15)","v":"Float"},null,null,"kΩ","MODE pin connection or resistor to AGND with input values"]
[null,"R_mode",null,null,"Float",null,"kΩ","Selected MODE pin connection or resistor to AGND"]
[null,"(33h) FREQUENCY_SWITCH sug",null,{"$f":"IF(PartNumber=\"TPS544C26\",VLOOKUP(fsw,partData!F30:G33,2,0),partData!B10)","v":"Pinstrap"},null,null,"kΩ","Suggested FREQUENCY_SWITCH value"]
[null,"(33h) FREQUENCY_SWITCH",null,null,"0x01",null,"kΩ","Selected FREQUENCY_SWITCH value"]
[null,"(A0h) SYS_CONFIG1 [7] sug",null,{"$f":"IF(PartNumber=\"TPS544C26\",VLOOKUP(C34,partData!I30:J31,2,0),partData!B10)","v":"Pinstrap"},null,null,"kΩ","Suggested (A0h) SYS_CONFIG1 bit 7 value"]
[null,"(A0h) SYS_CONFIG1 [7] ",null,null,1,null,"kΩ","Selected (A0h) SYS_CONFIG1 bit 7 value"]
[null,"fsw_select",null,null,null,{"$f":"IF(PartNumber=\"TPS544C26\",VLOOKUP(E40,partData!G30:H33,2,0),VLOOKUP(R_mode,partData!H18:J26,2,0))","v":800},"kHz","fsw with selected MODE configuration"]
[null,"LL_mode_select",null,null,null,{"$f":"IF(PartNumber=\"TPS544C26\",VLOOKUP(E42,partData!J30:K31,2,0),VLOOKUP(R_mode,partData!H18:J26,3,0))","v":"FCCM"},null,"Light load operation mode with selected MODE configuration"]
[null,"Choose the Output Inductor (Lout)"]
[null,"The inductance is selected based on a p-p ripple current target. Smaller L reduces solution size while larger L reduces AC loss."]
[null,"Kind",0.2,null,null,null,null,"Target ripple/Iout ratio (typically between 0.2 to 0.4)"]
[null,"L_target",null,{"$f":"((Vin_max-Vout)*Vout)/(Iout*Kind*Vin_max*fsw_select)*1000","v":0.97798295454545447},null,null,"µH","Target inductor value"]
[null,"L_min",null,{"$f":"((Vin_max-Vout)*Vout)/(Io_max_IC*0.5*Vin_max*fsw_select)*1000","v":0.22353896103896101},null,null,"µH","Minimum recommended inductance (ripple = 50% Iout_max_IC)"]
[null,"L_max",null,{"$f":"((Vin_max-Vout)*Vout)/(Io_max_IC*0.1*Vin_max*fsw_select)*1000","v":1.1176948051948052},null,null,"µH","Maximum recommended inductance (ripple = 10% Iout_max_IC)"]
[null,"L_rec",null,{"$f":"MIN(MAX(D49,D48),D50)","v":0.97798295454545447},null,null,"µH","Recommended inductance value"]
[null,"Lout",null,null,0.3,null,"µH","Selected inductance"]
[null,"DCR",null,null,10.186999999999999,null,"mΩ","DC resistance of selected inductor"]
[null,"Tol_L",null,null,0.2,null,null,"Tolerance of inductance for selected inductor"]
[null,"Iripple_max",null,null,null,{"$f":"1000*((Vin_max-Vout)*Vout)/(Lout*(1-Tol_L)*Vin_max*fsw_select)","v":16.29971590909091},"A","Inductor ripple current at Vin_max (Includes Tol_L. Used for DC ripple calculations. If red, risk of hitting negative OC)"]
[null,"Ipeak",null,null,null,{"$f":"Iout+(Iripple_max/2)","v":28.149857954545453},"A","Full load peak current at Vin_max"]
[null,"Irms",null,null,null,{"$f":"SQRT(Iout^2+(Iripple_max^2)/12)","v":20.546047346381638},"A","Inductor rms current at Vin_max"]
[null,"Iripple_min",null,null,null,{"$f":"1000*((Vin_min-Vout)*Vout)/(Lout*(1+Tol_L)*Vin_min*fsw_select)","v":8.30078125},null,"Inductor ripple current at Vin_min (includes Tol_L)"]
[null,"Ivalley",null,null,null,{"$f":"Iout-(Iripple_min/2)","v":15.849609375},"A","Full load valley current at Vin_min (used for I_lim calculations)"]
[null,"Set current limit (Rtrip) and I2C Address"]
[null,"Tol_ILIM",null,0.1,null,null,null,"Ilim tolerance"]
[null,"I_lim_target",null,{"$f":"Ivalley","v":15.849609375},null,null,"A","Recommended current limit target\n(Includes margin  for Tol_L and Ilim tolerance)"]
[null,"I_lim_rec",null,{"$f":"VLOOKUP(TRUE,partData!C37:E44,3,FALSE)","v":19},null,null,"kΩ","Recommended ILIM setting"]
[null,"I_lim_sel",26,null,null,null,"kΩ","Selected ILIM setting"]
[null,"R_ILIM_rec",null,{"$f":"IF(OR(PartNumber=\"TPS544C27\",PartNumber=\"TPS548C26\"),VLOOKUP(I_lim_sel,partData!B37:D44,3,FALSE),partData!C15)","v":16.2},null,null,"kΩ","Suggested ILIM resistor for selected ILIm setting"]
[null,"R_ILIM",null,null,16.2,null,"kΩ","Selected ILIM resistor"]
[null,"(C0h) ICC_MAX sug",null,{"$f":"IF(PartNumber=\"TPS544C26\",VLOOKUP(I_lim_sel,partData!B37:D44,3,FALSE),partData!C15)","v":"Pinstrap"},null,null,"kΩ","Suggested ICC_MAX value for selected ILIM setting"]
[null,"(C0h) ICC_MAX",null,null,"0xE0",null,"kΩ","Selected ICC_MAX value"]
[null,"I_lim",null,null,null,{"$f":"IF(PartNumber=\"TPS544C26\",VLOOKUP(E68,partData!D37:E44,2,FALSE),VLOOKUP(R_ILIM,partData!D37:E44,2,FALSE))","v":26},"A","ILIM setting with selected ILIM resistor"]
[null,"Io_max_min",null,null,null,{"$f":"I_lim*(1-Tol_Ilim)+Iripple_max/2","v":31.549857954545459},"A","Estimated minimum Iout at current limit"]
[null,"Io_max_typ",null,null,null,{"$f":"I_lim+1/2*(Vin_nom-Vout)*Vout/(Lout_H*Vin_nom*fsw_Hz)","v":32.109375},"A","Estimated typical Iout at current limit"]
[null,"Io_max_max",null,null,null,{"$f":"I_lim*(1+Tol_Ilim)+Iripple_max/2","v":36.749857954545455},"A","Estimated maximum Iout at current limit"]
[null,"I2C Address (h)","7C",null,null,null,"Hex(h)","Selected I2C address"]
[null,"R_I2C_rec",null,{"$f":"IF(PartNumber=\"TPS544C26\",VLOOKUP(I2C_Address__h,partData!B73:C88,2,FALSE),partData!C15)","v":"Pinstrap"},null,null,"kΩ","Suggested resistor value connectd between I2C_ADDR pin and AGND"]
[null,"Choose the Output Capacitor (Cout)"]
[null,"The output capacitance is deteremind based on the output ripple, transient and stability requirements."]
[null,"Io_step",15.75,null,null,null,"A","Iout load transient step"]
[null,"dVo_trans_perc",0.02,null,null,null,null,"Target Vout overshoot/undershoot after load step as a percentage of Vout"]
[null,"dVo_ripple_perc",2.1299999999999999E-2,null,null,null,null,"Target steady state Vout voltage ripple as a percentage of Vout"]
[null,"Slewrate_Io_step",10,null,null,null,"A/µs","Load step slew rate"]
[null,"dVo_trans",null,{"$f":"dVo_trans_perc*Vout","v":0.10199999999999999},null,null,"V","Target Vout overshoot/undershoot after load step"]
[null,"dVo_ripple",null,{"$f":"dVo_ripple_perc*Vout","v":0.10862999999999999},null,null,"V","Target steady state Vout voltage ripple"]
[null,"Cout_ripple",null,{"$f":"Iripple_max/(8*dVo_ripple*fsw_Hz)*10^6","v":23.445002400768249},null,null,"µF","Min Cout for DC ripple requirement (ignores ESR)"]
[null,"Cout_undershoot",null,{"$f":"((Lout*Io_step^2)*(Vout/(Vin_min*fsw_Hz)+toff_min_max_sec))/(2*dVo_trans*Vout*((Vin_min-Vout)/(Vin_min*fsw_Hz)-toff_min_max_sec))","v":148.7296173393961},null,null,"µF","Min Cout for undershoot requirement"]
[null,"Cout_undershoot",null,{"$f":"MAX(0,Io_step/(2*dVo_trans)*(((Lout_H*Io_step)*(Vout/(Vin_min*fsw_Hz)+toff_min_max_sec))/(Vout*((Vin_min-Vout)/(Vin_min*fsw_Hz)-toff_min_max_sec))-Io_step/(Slewrate_Io_step*10^6))*10^6)","v":27.130352633513692},null,null,"µF","Min Cout for undershoot requirement (including slew rate)"]
[null,"Cout_overshoot",null,{"$f":"Lout*Io_step^2/(2*Vout*dVo_trans)","v":71.528979238754346},null,null,"µF","Min Cout for overshoot requirement"]
[null,"Cout_overshoot",null,{"$f":"MAX(0,Io_step/(2*dVo_trans)*(Lout_H*Io_step/Vout-Io_step/(Slewrate_Io_step*10^6))*10^6)","v":0},null,null,"µF","Min Cout for overshoot requirement (including slew rate)"]
[null,"Cout_stability",null,{"$f":"(15/(PI()*fsw_Hz))^2*1/Lout_H*1000000","v":118.7357620808646},null,null,"µF","Min Cout for stability (f_LC < fsw/30)"]
[null,"Cout_min",null,{"$f":"MAX(D83:D88)","v":148.7296173393961},null,null,"µF","Recommended min Cout (must include any derating due to DC/AC bias, temp and/or tolerance)"]
[null,"Cout_max",null,{"$f":"2500/(PI()^2*fsw_Hz^2*Lout_H)*1000000","v":1319.2862453429398},null,null,"µF","Max Cout for stability (f_LC > fsw/100) (Exceeding this may be ok but further validation is required)"]
[null,"ESR_trans",null,{"$f":"dVo_trans/Io_step*1000","v":6.4761904761904754},null,null,"mΩ","Max effective ESR to meet load step transient requirement"]
[null,"ESR_ripple",null,{"$f":"dVo_ripple/Iripple_max*1000","v":6.664533333333333},null,null,"mΩ","Max effective ESR to meet ripple requirement"]
[null,"ESR_max",null,{"$f":"MIN(D91:D92)","v":6.4761904761904754},null,null,"mΩ","Recommanded max effective ESR \n(when using mixed type output capacitors, it may be possible for bulk capacitance to have higher ESR)"]
[null,"Cout_single_cer",null,null,788,null,"µF","Nominal value of a Single Ceramic Output Capacitor"]
[null,"Cer_derating",null,null,0.9,null,null,"Percentage of Nominal Ceramic Capacitance remaining after Tolerance, Thermal, and DC Bias derating"]
[null,"ESR_single_cer",null,null,1,null,"mΩ","Single Ceramic Capacitor ESR"]
[null,"N_cer",null,null,1,null,null,"Number of Ceramic Capacitors"]
[null,"Cout_cer",null,null,null,{"$f":"IF(N_cer=0,0.001,N_cer*E94*Cer_derating)","v":709.2},"uF","Total Ceramic Output Capacitance"]
[null,"ESR_cer",null,null,null,{"$f":"IF(N_cer=0,0,E96/N_cer)","v":1},"mΩ","Effective Ceramic Capacitance ESR"]
[null,"Cout_single_bulk",null,null,0.1,null,"uF","Nominal value of a Single Bulk/Polymer/Electrolytic Output Capacitor"]
[null,"Bulk_derating",null,null,1,null,null,"Percentage of Nominal Bulk Capacitance remaining after Tolerance, Thermal, and DC Bias derating"]
[null,"ESR_single_bulk",null,null,1,null,"mΩ","Single Bulk Capacitor ESR"]
[null,"N_bulk",null,null,0,null,null,"Number of Bulk Capacitors"]
[null,"Cout_bulk",null,null,null,{"$f":"IF(N_bulk=0,0.001,N_bulk*E100*Bulk_derating)","v":1E-3},"µF","Total Bulk Output Capacitance"]
[null,"ESR_bulk",null,null,null,{"$f":"IF(N_bulk=0,10^9,E102/N_bulk)","v":1000000000},"mΩ","Effective Bulk Capacitance ESR"]
[null,"Cout",null,null,null,{"$f":"Cout_bulk+Cout_cer","v":709.20100000000002},"uF","Total Bulk + Ceramic Output Capacitance "]
[null,"Vo_undershoot",null,null,null,{"$f":"(Lout_H*Io_step^2)*(Vout/(Vin_min*fsw_Hz)+toff_min_max_sec)/(2*Cout_F*Vout*((Vin_min-Vout)/(Vin_min*fsw_Hz)-toff_min_max_sec))*10^3","v":21.390862348781795},"mV","Estimated undershoot (ignores ESR and ESL)"]
[null,"Vo_overshoot",null,null,null,{"$f":"(Lout_H*Io_step^2/(2*Vout*Cout_F))*10^3","v":10.287571340639595},"mV","Estimated overshoot (ignores ESR and ESL)"]
[null,"Zout_fsw",null,null,null,{"$f":"1/(1/(SQRT((ESR_bulk*10^-3)^2+1/(2*PI()*fsw_select*10^3*Cout_bulk*10^-6)^2))+1/(SQRT((ESR_cer*10^-3)^2+1/(2*PI()*fsw_select*10^3*Cout_cer*10^-6)^2)))*1000","v":1.0386003051713506},"mΩ","Output Impedance at Swiching Frequency"]
[null,"Vo_ripple",null,null,null,{"$f":"Iripple_max*Zout_fsw","v":16.928889917388137},"mV","Estimated capacitive + resistive DC ripple (ignores ESL)"]
[null,"f_LC",null,null,null,{"$f":"1/(2*PI()*SQRT(Lout_H*Cout_F))*0.001","v":10.911258243987875},"kHz","LC resonant frequency \n(if yellow, feedforward cap recommended)"]
[null,"f_ESR_cer",null,null,null,{"$f":"1/(2*PI()*Cout_cer*10^-6*ESR_cer*10^-3)*10^-3","v":224.41475337266689},"kHz","Ceramic capacitor ESR zero frequency \n(if yellow, ESR zero may affect loop stability)"]
[null,"f_ESR_bulk",null,null,null,{"$f":"IF(N_bulk=0,\"N/A\",1/(2*PI()*Cout_bulk*10^-6*ESR_bulk*10^-3)*10^-3)","v":"N/A"},"kHz","Bulk capacitor ESR zero frequency \n(if yellow, ESR zero may affect loop stability)"]
[null,"Choose the Input Capacitor (Cin)"]
[null,"The input capacitance is deteremind based on the input ripple requirements. Additional bulk input capacitance may be needed for transients. 0.1µF high frequency bypass capacitors are also required."]
[null,"Vi_ripple_percent",0.04,null,null,null,null,"Target DC input ripple voltage percentage"]
[null,"Vi_ripple_target",null,{"$f":"Vin_min*C116*1000","v":384},null,null,"mV","Target DC input voltage ripple (Vi_ripple_percent of min Vin)"]
[null,"Q_input",null,{"$f":"(Iout*(1-Vout/Vin_min)*Vout)/(fsw_Hz*Vin_min)*10^6","v":6.2255859375},null,null,"µC","Charge per switching cycle (Vin_min)"]
[null,"Cin_min",null,{"$f":"MAX(Q_input/Vi_ripple_target*10^3,10)","v":16.21246337890625},null,null,"µF","Minimum input capacitance required"]
[null,"Cin_cer",null,null,52,null,"µF","Selected total input ceramic capacitance"]
[null,"Cin_derating",null,null,0.5,null,null,"Percentage of Nominal Ceramic Capacitance remaining after Tolerance, Thermal, and DC Bias derating"]
[null,"Cin_eff",null,null,null,{"$f":"Cin_cer*Cin_derating","v":26},"µF","Effective total input ceramic capacitance"]
[null,"Vi_ripple",null,null,null,{"$f":"D118*1000/E120","v":119.72280649038461},"mV","Input DC ripple"]
[null,"Iin_rms",null,null,null,{"$f":"(Vout/Vin_min*((1-Vout/Vin_min)*Iout^2+ (Iripple_min^2)/12))^0.5","v":10.132115616825732},"A","Input RMS current"]
[null,"Determine feedback network values (FB resistor divider and Cff)"]
[null,"Rfb_b_rec",null,2.61,null,null,"kΩ","Bottom feedback resistor (499-20k recommended)"]
[null,"Rfb_b",null,null,5.36,null,"kΩ","Selected bottom feedback resistor"]
[null,"Rfb_t_target",null,{"$f":"Rfb_b*(Vout/Vref-1)","v":28.81},null,null,"kΩ","Calculated top resistor"]
[null,"Rfb_t_NSV",null,{"$f":"partData!V11","v":28.7},null,null,"kΩ","Nearest Standard Value 1%"]
[null,"Rfb_t",null,null,1E-4,null,"kΩ","Selected top resistor"]
[null,"Vout_calc",null,null,null,{"$f":"Vref*(1+Rfb_t/Rfb_b)","v":0.80001492537313446},"V","Calculated Vout (yellow if not within 1% of target Vout)"]
[null,"FF_cap?",null,{"$f":"IF(OR(Vout>1.8,f_LC<fsw_select/60),\"YES\",\"NO\")","v":"YES"},null,null,null,"Feedforward cap recommended? (if f_LC < fsw/60 OR Vout > 1.8)"]
[null,"fz_cff_div_f_LC",null,{"$f":"IF(Vout<1.8,3,-0.625*Vout+4.125)","v":0.9375},null,null,null,"Recommended location of fz_cff relative to f_LC (if Vout <1.8 then 3, if Vout = 5 then 1)"]
[null,"Cff_calc",null,{"$f":"1/(2*PI()*(fz_cff_div_f_LC*f_LC)*Rfb_t)*1000000","v":155587255.69060379},null,null,"pF","Recommended feedforward cap value"]
[null,"Cff_NSV",null,{"$f":"IF(Cff_calc<10000,VLOOKUP((10^(LOG(Cff_calc)-INT(LOG(Cff_calc)))),c_s1:C_f1,1),VLOOKUP((10^(LOG(Cff_calc)-INT(LOG(Cff_calc)))),C_s2:C_f2,1))*10^INT(LOG(Cff_calc))","v":150000000},null,null,"pF","Nearest Standard Value"]
[null,"Cff",null,null,0,null,"pF","Selected feedforward cap value"]
[null,"Rff_rec",null,{"$f":"Rfb_t/20","v":5.0000000000000004E-6},null,null,"kΩ","Recommended feedforward resistor"]
[null,"Rff_NSV",null,{"$f":"(IF((10^(LOG(D137)-INT(LOG(D137)))*100)-VLOOKUP((10^(LOG(D137)-INT(LOG(D137)))*100),E96_s:E96_f,1)<VLOOKUP((10^(LOG(D137)-INT(LOG(D137)))*100),E96_s:E96_f,2)-(10^(LOG(D137)-INT(LOG(D137)))*100),VLOOKUP((10^(LOG(D137)-INT(LOG(D137)))*100),E96_s:E96_f,1),VLOOKUP((10^(LOG(D137)-INT(LOG(D137)))*100),E96_s:E96_f,2)))*10^INT(LOG(D137))/100","v":4.9899999999999997E-6},null,null,"kΩ","Rff nearest E96 standard value"]
[null,"Rff",null,null,0,null,"kΩ","Selected feedforward resistor value"]
[null,"fz_cff",null,null,null,{"$f":"IF(Cff<>0,1/(2*PI()*Cff*0.000000001*(Rfb_t+Rff)*1000),\"N/A\")","v":"N/A"},"kHz","Frequency of zero added by the feedforward cap"]
[null,"Soft-start Resistor (SS)"]
[null,"Tss_target",8,null,null,null,"ms","Soft-start time"]
[null,"RAMP Selection",null,"RAMP2",null,null,"-","RAMP selection"]
[null,"Fault Response",null,null,"Latch-off",null,"-","Fault Response"]
[null,"Soft-start Resistor ",null,null,null,{"$f":"IF(AND(D143=\"RAMP1\", Css=\"Latch-off\"),VLOOKUP(Tss_target,partData!B52:E55,4),IF(AND(D143=\"RAMP2\", Css=\"Latch-off\"),VLOOKUP(Tss_target,partData!B56:E59,4),IF(AND(D143=\"RAMP1\", Css=\"Hiccup\"),VLOOKUP(Tss_target,partData!B60:E63,4),IF(AND(D143=\"RAMP2\", Css=\"Hiccup\"),VLOOKUP(Tss_target,partData!B64:E67,4),\"OPEN\"))))","v":8.8699999999999992},"kΩ","SS resistor"]
[null,"EN pin resistor divider"]
[null,"Vstart_target",{"$f":"Vin_min","v":9.6},null,null,null,"V","Target turn on voltage set by EN resistor divider"]
[null,"Ren_b_rec",null,10]
[null,"Ren_b",null,null,0,null,"kΩ","Selected bottom resistor (1k-100k recommended)"]
[null,"Ren_b_eff",null,null,null,{"$f":"Ren_b*6000/(Ren_b+6000)","v":0},"kΩ","Effective bottom resistance including 6-MΩ internal pull-down resistance on EN pin"]
[null,"Ren_t_calc",null,{"$f":"Ren_b_eff*Vstart_target/EN_rise-Ren_b_eff","v":0},null,null,"kΩ","Calculated top resistor"]
[null,"Ren_t_NSV",null,{"$f":"partData!V12","v":0},null,null,"kΩ","Nearest Standard Value 1%"]
[null,"Ren_t",null,null,0,null,"kΩ","Selected top resistor"]
[null,"Vstart_typ",null,null,null,{"$f":"IF(OR(Ren_b=0,Ren_t=0),\"N/A\",EN_rise*(Ren_b_eff+Ren_t)/Ren_b_eff)","v":"N/A"},"V","Estimated typical turn on voltage with selected resistors\n(Red if below Vin_min, Yellow if near Vin_min)"]
[null,"Vstop_typ",null,null,null,{"$f":"IF(OR(Ren_b=0,Ren_t=0),\"N/A\",EN_fall*(Ren_b_eff+Ren_t)/Ren_b_eff)","v":"N/A"},"V","Estimated typical turn off voltage with selected resistors"]
[null,"Ven_max",null,null,null,{"$f":"IF(OR(Ren_b=0,Ren_t=0),\"N/A\",Vin_max*Ren_b_eff/(Ren_t+Ren_b_eff))","v":"N/A"},"V","Estimated maximum voltage at EN pin at max input voltage (Red if >6V)"]
[null,"Operating Input Voltage Range"]
[null,"fsw_select",null,null,null,{"$f":"fsw_select","v":800},"kHz","Chosen switching frequency"]
[null,"Minimum Vin",null,null,null,{"$f":"IF(2*Iout*(Rdson_HS_Ohm-Rdson_LS_Ohm)-(Vout+2*Iout*(DCR_Ohm+Rdson_LS_Ohm))/(fsw_Hz*toff_min_max_sec-1)<Vin_min_IC,Vin_min_IC,2*Iout*(Rdson_HS_Ohm-Rdson_LS_Ohm)-(Vout+2*Iout*(DCR_Ohm+Rdson_LS_Ohm))/(fsw_Hz*toff_min_max_sec-1))","v":6.6007009345794385},"V","Minimum input voltage allowed for proper function, based on fsw and minimum off time"]
[null,"Maximum Vin",null,null,null,{"$f":"IF(Vout/fsw_Hz*1/(ton_min_sec)*0.95>Vin_max_IC,Vin_max_IC,Vout/fsw_Hz*1/(ton_min_sec)*0.95)","v":18},"V","Maximum input voltage allowed for proper function, based on fsw and minimum on time"]
[null,"VCC bypass capacitor, BOOT bypass capacitor, PGOOD resistor"]
[null,"Cvcc_rec",null,4.7,null,null,"µF","At least 1 µF required"]
[null,"Cvcc",null,null,4.7,null,"µF","Selected Cvcc"]
[null,"Cboot_rec",null,0.1,null,null,"µF","At least 0.1µF required"]
[null,"Cboot",null,null,0.1,null,"µF","Selected Cboot"]
[null,"Rboot_rec",null,{"$f":"IF(AND(C29=\"TPS543820\",Vin_max>13.5),2.2,0)","v":0},null,null,"µF","0-Ω series BOOT resistor placeholder recommended in case SW voltage overshoot needs to be reduced."]
[null,"Rboot",null,null,0,null,"Ω","Selected Rboot."]
[null,"Rpg_rec",null,10,null,null,"kΩ","1k-100k recommended"]
[null,"Rpg",null,null,10,null,"kΩ","Selected Rpg"]

{"sheet":"6A_SchematicChecklist","index":2,"n_rows":26,"n_cols":8,"rows_kept":26,"cut":false,"hidden":true,"merged":[[1,0,1,7],[6,0,6,7],[15,0,15,7]]}
["Pin","Name","Purpose","Connection For Functional Use","Reasoning","Recommended Component Values from Design Calculations","Status","Comments"]
["Control"]
[6,"FB divider","Output feedback input","Ensure that the feedback divider network gives the appropriate Vout based on the Vref chosen. The FB pin must be connected to the AGND pin.",null,{"$f":"CONCATENATE(\"Rfb_t = \",ROUND(DeviceCalculator!D128,3),\" kΩ\",\"\nRfb_b = \",ROUND(Rfb_b,3),\" kΩ\")","v":"Rfb_t = 28.81 kΩ\nRfb_b = 5.36 kΩ"},"Open"]
[6,"FB Cff","Output feedback input","Add a capacitor in parallel with the top feedback resistor","Improves transient response and may be required for sufficient phase margin or minimizing output ripple",{"$f":"CONCATENATE(\"Cff = \",ROUND(DeviceCalculator!D134,0),\" pF\")","v":"Cff = 155587256 pF"},"Open"]
[6,"FB Cff, FB divider","Output feedback input","The RC time constant between RfbTop and Cff should be less than 1.5*Tsw, where Tsw is the switching period. If a larger Cff is required, RfbTop and RfbBottom should be reduced accordingly while still maintaining the desired voltage divider ratio. For example, if Cff is doubled, RfbTop and RfbBottom should both be halved.\n\nTypically in general, Cff is not needed for Vout < 2.5 V. It is typically needed for Vout > 2.5V","Larger Cff helps improve transient response, but can put a low frequency zero which can cause instability"]
[]
["Configuration"]
[12,"MODE","fsw and DCM/CCM selection","Connect a resistor from MODE pin to AGND pin. 10% or better tolerance resistor is required. Use Table 1 to select the desired mode.",null,{"$f":"CONCATENATE(R_mode,\" kΩ\")","v":"Float kΩ"},"Open"]
[12,"MODE fsw setting","fsw selection","Selected fsw should be below the maximum limits calculated in the calculator tab","When exceeding fsw_max_ton, the fsw will decrease but the output will still be regulated. \nWhen exceeding fsw_max_toff, the output will become unregulated and UVP may trip.",{"$f":"CONCATENATE(\"fsw_max_ton = \",ROUND(DeviceCalculator!D35,0),\" kHz\",\"\nfsw_max_toff = \",ROUND(DeviceCalculator!D36,0),\" kHz\")","v":"fsw_max_ton = 7727 kHz\nfsw_max_toff = 2305 kHz"},"Open"]
[4,"TRIP","OCL detection threshold setting pin","Connect the resistor from the TRIP pin to the AGND pin. Use WEBENCH or calculator to calculate the RTRIP resistor value. Recommend 1% or better resistors for RTRIP.",null,{"$f":"CONCATENATE(\"Valley ILIM = \",ROUND(I_lim_target,2),\" A\n\",\"RTRIP = \",ROUND(Rtrip,2),\" kΩ\")","v":"Valley ILIM = 15.85 A\nRTRIP = 26 kΩ"},"Open"]
[8,"SS/REFIN","Soft-start time","Connecting a capacitor from this pin to AGND pin programs soft-start time. Minimum soft-start time (1.5 ms) is fixed internally. \nA minimum 1-nF capacitor is required. ",null,{"$f":"CONCATENATE(\"CSSREFIN = \",ROUND(DeviceCalculator!D143,0),\" nF\")","v":{"$error":"#VALUE!"}},"Open"]
[9,"PGOOD","Open drain power good flag","Connect a 1k-100k resistor to pull-up this pin. Recommend pulling up to VCC but not required.","PGOOD pin is an open-drain output so a pull-up is required when used",null,"Open"]
[5,"EN","Enable pin","Floating this pin is not recommended. To start switching, this pin must be pulled high.\nThe recommended max voltage rating on the EN pin is 6V. Do not connect EN pin directly to VIN unless the max VIN for your application is below 6V. \nWhen using VIN or VDD to drive the EN pin, use a resistor divider and ensure that the voltage stays below 6V.",null,{"$f":"CONCATENATE(\"Ren_t = \",ROUND(DeviceCalculator!D151,3),\" kΩ\",\"\nRen_b = \",ROUND(Ren_b,3),\" kΩ\")","v":"Ren_t = 0 kΩ\nRen_b = 0 kΩ"},"Open"]
[7,"AGND","Ground reference for control circuits","AGND must be connected to PGND",null,null,"Open"]
[]
["Power Stage"]
["3 (VIN), \n1, 14 (PGND)","VIN-PGND cap","Conversion power input","A minimum of 10-µF input capacitance is required","The input capacitor Cin should be able to give minimum ripple voltage desired for the application. Use WEBENCH or calculator to calculate the input capacitance. ",{"$f":"CONCATENATE(\"Cin > \",ROUND(DeviceCalculator!D119,1),\" µF\")","v":"Cin > 16.2 µF"},"Open"]
["3 (VIN),\n1, 14 (PGND)","VIN-PGND hf cap","Conversion power input","Include a 10nF-100nF 0402 input capacitor","Minimizes high frequency voltage overshoots and undershoots from switching","Cin_hf >= 10 nF","Open"]
[10,"BOOT cap","Supply input for high-side FET gate driver","Connect at least 100-nF capacitor from the BOOT pin to the SW pin. The BOOT capacitor should be at least 10-V rated, X5R, and 0402 size.","10-V rating, X5R or better dielectric, and 0402 size or larger ensure stable capacitance across all operating conditions",{"$f":"CONCATENATE(\"Cboot >= \",ROUND(DeviceCalculator!D164,2),\" µF\")","v":"Cboot >= 0.1 µF"},"Open"]
[10,"BOOT resistor","Supply input for high-side FET gate driver","Include a 0-Ω resistor in series with the BOOT capacitor with an 0402 or larger package size. Optional but highly recommended in case of layout related issues.","If the SW pin overshoot is too high, populating a 4.7-Ω resistor in series with the BOOT capacitor minimizes high frequency voltage overshoots on rising edge of SW pin","Rboot = 0 Ω","Open"]
["2, 11","SW","Switching node","Connect this pin to the output inductor",null,null,"Open"]
["2, 11","SW snubber","Switching node","Optional RC Snubber from SW to PGND. This component can be not populated.\nCapacitor: typ 220 pF with 0402 package and 25V rating\nResistor: typ near 6.8-Ω with minimum 0603 package","If the SW pin ringing is too high, helps minimize high frequency voltage overshoots and undershoots from switching\nCapacitor: Minimum 25V rating to support LL voltage\nResistor: Minimum 0805 package to support power loss","Csnub = 220 pF\nRsnub = 6.8 Ω","Open"]
["N/A","Lout","Output inductor","Use the recommended inductance in WEBENCH or calculator to meet design requirements",null,{"$f":"CONCATENATE(ROUND(DeviceCalculator!D49,2),\" < Lout < \",ROUND(DeviceCalculator!D50,2),\" µH\")","v":"0.22 < Lout < 1.12 µH"},"Open"]
["N/A","Cout","Output capacitors","Use the recommended capacitance in WEBENCH or calculator to meet ripple and transient requirements","The maximum Cout is a recommendation only. Exceeding this may be acceptable but the stability should be evaluated by measuring the load step response or bode plot.",{"$f":"CONCATENATE(ROUND(DeviceCalculator!D89,1),\" < Cout < \",ROUND(DeviceCalculator!D90,1),\" µF\")","v":"148.7 < Cout < 1319.3 µF"},"Open"]
[13,"VCC","Internal 3-V LDO output","Require at least 1-µF, 6.3-V rating ceramic capacitor from VCC pin to PGND pins as the bypass capacitor. 2.2-µF recommended.","Minimum capacitance required for stability of the internal regulator.","Cvcc >= 1 µF","Open"]
[13,"VCC","Internal 3-V LDO output","An external bias with 3.3-V can be connected to this pin to save the power losses on the internal LDO",null,null,"Open"]

{"sheet":"6A_LayoutChecklist","index":3,"n_rows":17,"n_cols":7,"rows_kept":17,"cut":false,"hidden":true,"merged":[[10,0,10,6],[1,0,1,6]]}
["Pin","Name","Purpose","Placement or Routing?","Remarks","Status","Comments"]
["Power Stage"]
["3 (VIN), \n1, 14 (PGND)","VIN-PGND caps","Conversion power input","Placement","A 0402 sized 0.01-μF to 0.1-μF bypass capacitor must be placed as close as possible to the VIN and PGND pins to bypass high frequency noise and help reduce switch node ringing. It must be placed on the same side of the PCB as the IC.\nLarger VIN bypass capacitors should also be placed as close as possible to VIN and PGND pins behind this capacitor to minimize the input AC-current loop.","Open"]
[13,"VCC cap","Internal 3-V LDO output","Placement","Place the VCC bypass capacitor as close as possible to the IC on the same side of the PCB. If multiple capacitors are used, provide PGND vias for each capacitor and ensure the return path is as short as possible.","Open"]
["1, 14","PGND",null,"Routing","Include a large PGND pour connected to the PGND pins of the IC and include as many vias as possible for best thermal performance.","Open"]
["N/A","Cout and Lout","Output filter inductor and capacitors","Placement and Routing","Highly recommended to place output and inductor on the same side of the PCB as the IC to minimize PCB parasitic impedance. If components must be placed on the other side of the PCB due to space constraints, ensure multiple vias are used to minimize the added PCB parasitic impedance.","Open"]
[10,"BOOT cap and resistor","Supply input for high-side FET gate driver","Placement","Place the BOOT resistor (if used) as close as possible to the pin, followed by the BOOT capacitor. ","Open"]
["2, 11","SW","Switching node","Routing","The PCB trace which connects the SW pins and high-voltage side of the inductor, should be as short and wide as possible to minimize PCB resistance and radiated noise.","Open"]
["2, 11","SW snubber","Switching node","Placement and Routing","If used, keep the snubber path short for low inductance and the best possible performance. Also, to minimize inductance, avoid using vias for the RC snubber routing anduse very wide traces. To be most effective, the RC snubber should be connected between a large SW and PGND copper pour on the same side of the PCB as the IC.","Open"]
[]
["Control and Configuration"]
[7,"AGND","Ground reference for control circuits","Routing","Create a quite AGND island for the return of noise sensitive pins. Connect AGND to PGND at a single point. For example, use vias to connect to an internal ground plane.","Open"]
["4, 6, 8","TRIP, FB, SS/REFIN","Current limit, Output feedback input, and soft-start timing","Placement","Place the components connected to TRIP, FB and SS/REFIN as close as possible to the IC to minimize the length of trace connected to them. These components must also be returned to quite area of AGND.","Open"]
[6,"FB","Output feedback input","Routing","Connect the FB divider to the output voltage near the desired point of regulation. Avoid routing near noisy signals or power planes.","Open"]
[12,"MODE","Light load mode and fsw selection","Routing","The MODE pin resistor must be returned to the quiet AGND to ensure accurate pin detection.","Open"]
[9,"PGOOD","Open drain power good","Placement and Routing","Keep the PGOOD pull-up resistor and traces away from fast switching voltage and current paths.","Open"]
[8,"EN","Enable pin","Placement and Routing","All components and routing for the EN pin should be placed away from any high voltage switch node (itself and others), such as SW and BOOT to avoid noise coupling."]

{"sheet":"Std. R and C Values","index":4,"n_rows":99,"n_cols":17,"rows_kept":99,"cut":false,"hidden":false,"merged":[[2,4,2,5],[2,6,2,7],[9,4,9,5],[22,4,22,5],[47,4,47,5]]}
["Hide Sheet"]
[null,null,null,null,"Std. Resistors",null,null,null,null,"Capacitors"]
[null,"Enter resistor value",100,null,"E6",null,"E96",null,null,"Cap value",8.2000000000000006E-8,"pF"]
[null,null,null,null,100,150,100,102,null,null,{"$f":"IF(K3*10^12<10000,IF((10^(LOG(K3*10^12)-INT(LOG(K3*10^12))))-VLOOKUP((10^(LOG(K3*10^12)-INT(LOG(K3*10^12)))),c_s1:C_f1,1)<VLOOKUP((10^(LOG(K3*10^12)-INT(LOG(K3*10^12)))),c_s1:C_f1,2)-(10^(LOG(K3*10^12)-INT(LOG(K3*10^12)))),VLOOKUP((10^(LOG(K3*10^12)-INT(LOG(K3*10^12)))),c_s1:C_f1,1),VLOOKUP((10^(LOG(K3*10^12)-INT(LOG(K3*10^12)))),c_s1:C_f1,2))*10^INT(LOG(K3*10^12)),IF((10^(LOG(K3*10^12)-INT(LOG(K3*10^12))))-VLOOKUP((10^(LOG(K3*10^12)-INT(LOG(K3*10^12)))),C_s2:C_f2,1)<VLOOKUP((10^(LOG(K3*10^12)-INT(LOG(K3*10^12)))),C_s2:C_f2,2)-(10^(LOG(K3*10^12)-INT(LOG(K3*10^12)))),VLOOKUP((10^(LOG(K3*10^12)-INT(LOG(K3*10^12)))),C_s2:C_f2,1),VLOOKUP((10^(LOG(K3*10^12)-INT(LOG(K3*10^12)))),C_s2:C_f2,2))*10^INT(LOG(K3*10^12)))*10^-12","v":6.8E-8},"pF"]
[null,"Closest E6 Value",{"$f":"(IF((10^(LOG(C3)-INT(LOG(C3)))*100)-VLOOKUP((10^(LOG(C3)-INT(LOG(C3)))*100),E6_s:E6_f,1)<VLOOKUP((10^(LOG(C3)-INT(LOG(C3)))*100),E6_s:E6_f,2)-(10^(LOG(C3)-INT(LOG(C3)))*100),VLOOKUP((10^(LOG(C3)-INT(LOG(C3)))*100),E6_s:E6_f,1),VLOOKUP((10^(LOG(C3)-INT(LOG(C3)))*100),E6_s:E6_f,2)))*10^INT(LOG(C3))/100","v":100},null,150,220,102,105]
[null,"Closest E12 Value",{"$f":"(IF((10^(LOG(C3)-INT(LOG(C3)))*100)-VLOOKUP((10^(LOG(C3)-INT(LOG(C3)))*100),E12_s:E12_f,1)<VLOOKUP((10^(LOG(C3)-INT(LOG(C3)))*100),E12_s:E12_f,2)-(10^(LOG(C3)-INT(LOG(C3)))*100),VLOOKUP((10^(LOG(C3)-INT(LOG(C3)))*100),E12_s:E12_f,1),VLOOKUP((10^(LOG(C3)-INT(LOG(C3)))*100),E12_s:E12_f,2)))*10^INT(LOG(C3))/100","v":100},null,220,330,105,107,null,"C values up to 10nF"]
[null,"Closest E24 Value",{"$f":"(IF((10^(LOG(C3)-INT(LOG(C3)))*100)-VLOOKUP((10^(LOG(C3)-INT(LOG(C3)))*100),E24_s:E24_f,1)<VLOOKUP((10^(LOG(C3)-INT(LOG(C3)))*100),E24_s:E24_f,2)-(10^(LOG(C3)-INT(LOG(C3)))*100),VLOOKUP((10^(LOG(C3)-INT(LOG(C3)))*100),E24_s:E24_f,1),VLOOKUP((10^(LOG(C3)-INT(LOG(C3)))*100),E24_s:E24_f,2)))*10^INT(LOG(C3))/100","v":100},null,330,470,107,110,null,1,1.2,{"$f":"IF((10^(LOG(K3)-INT(LOG(K3))))-VLOOKUP((10^(LOG(K3)-INT(LOG(K3)))),c_s1:C_f1,1)<VLOOKUP((10^(LOG(K3)-INT(LOG(K3)))),c_s1:C_f1,2)-(10^(LOG(K3)-INT(LOG(K3)))),VLOOKUP((10^(LOG(K3)-INT(LOG(K3)))),c_s1:C_f1,1),VLOOKUP((10^(LOG(K3)-INT(LOG(K3)))),c_s1:C_f1,2))","v":8.1999999999999993}]
[null,"Closest E48 Value",{"$f":"(IF((10^(LOG(C3)-INT(LOG(C3)))*100)-VLOOKUP((10^(LOG(C3)-INT(LOG(C3)))*100),E48_s:E48_f,1)<VLOOKUP((10^(LOG(C3)-INT(LOG(C3)))*100),E48_s:E48_f,2)-(10^(LOG(C3)-INT(LOG(C3)))*100),VLOOKUP((10^(LOG(C3)-INT(LOG(C3)))*100),E48_s:E48_f,1),VLOOKUP((10^(LOG(C3)-INT(LOG(C3)))*100),E48_s:E48_f,2)))*10^INT(LOG(C3))/100","v":100},null,470,680,110,113,null,1.2,1.5]
[null,"Closest E96 Value",{"$f":"(IF((10^(LOG(C3)-INT(LOG(C3)))*100)-VLOOKUP((10^(LOG(C3)-INT(LOG(C3)))*100),E96_s:E96_f,1)<VLOOKUP((10^(LOG(C3)-INT(LOG(C3)))*100),E96_s:E96_f,2)-(10^(LOG(C3)-INT(LOG(C3)))*100),VLOOKUP((10^(LOG(C3)-INT(LOG(C3)))*100),E96_s:E96_f,1),VLOOKUP((10^(LOG(C3)-INT(LOG(C3)))*100),E96_s:E96_f,2)))*10^INT(LOG(C3))/100","v":100},null,680,1000,113,115,null,1.5,1.8,null,null,null,null,"Notes:","If I use the value in column K it rounds up"]
[null,null,null,null,"E12",null,115,118,null,1.8,2.2000000000000002,null,null,null,null,null,"If I use the value in column J it rounds down"]
[null,null,null,null,100,120,118,121,null,2.2000000000000002,2.7]
[null,null,null,null,120,150,121,124,null,2.7,3.3]
[null,null,null,null,150,180,124,127,null,3.3,3.9]
[null,null,null,null,180,220,127,130,null,3.9,4.7]
[null,null,null,null,220,270,130,133,null,4.7,5.6]
[null,null,null,null,270,330,133,137,null,5.6,6.8]
[null,null,null,null,330,390,137,140,null,6.8,8.1999999999999993]
[null,null,null,null,390,470,140,143,null,8.1999999999999993,10]
[null,null,null,null,470,560,143,147,null,"C values greater than 10nF"]
[null,null,null,null,560,680,147,150,null,1,1.5,{"$f":"IF((10^(LOG(K3)-INT(LOG(K3))))-VLOOKUP((10^(LOG(K3)-INT(LOG(K3)))),C_s2:C_f2,1)<VLOOKUP((10^(LOG(K3)-INT(LOG(K3)))),C_s2:C_f2,2)-(10^(LOG(K3)-INT(LOG(K3)))),VLOOKUP((10^(LOG(K3)-INT(LOG(K3)))),C_s2:C_f2,1),VLOOKUP((10^(LOG(K3)-INT(LOG(K3)))),C_s2:C_f2,2))","v":6.8}]
[null,null,null,null,680,820,150,154,null,1.5,2.2000000000000002]
[null,null,null,null,820,1000,154,158,null,2.2000000000000002,3.3]
[null,null,null,null,"E24",null,158,162,null,3.3,4.7]
[null,null,null,null,100,110,162,165,null,4.7,6.8]
[null,null,null,null,110,120,165,169,null,6.8,10]
[null,null,null,null,120,130,169,174]
[null,null,null,null,130,150,174,178]
[null,null,null,null,150,160,178,182]
[null,null,null,null,160,180,182,187]
[null,null,null,null,180,200,187,191]
[null,null,null,null,200,220,191,196]
[null,null,null,null,220,240,196,200]
[null,null,null,null,240,270,200,205]
[null,null,null,null,270,300,205,210]
[null,null,null,null,300,330,210,215]
[null,null,null,null,330,360,215,221]
[null,null,null,null,360,390,221,226]
[null,null,null,null,390,430,226,232]
[null,null,null,null,430,470,232,237]
[null,null,null,null,470,510,237,243]
[null,null,null,null,510,560,243,249]
[null,null,null,null,560,620,249,255]
[null,null,null,null,620,680,255,261]
[null,null,null,null,680,750,261,267]
[null,null,null,null,750,820,267,274]
[null,null,null,null,820,910,274,280]
[null,null,null,null,910,1000,280,287]
[null,null,null,null,"E48",null,287,294]
[null,null,null,null,100,105,294,301]
[null,null,null,null,105,110,301,309]
[null,null,null,null,110,115,309,316]
[null,null,null,null,115,121,316,324]
[null,null,null,null,121,127,324,332]
[null,null,null,null,127,133,332,340]
[null,null,null,null,133,140,340,348]
[null,null,null,null,140,147,348,357]
[null,null,null,null,147,154,357,365]
[null,null,null,null,154,162,365,374]
[null,null,null,null,162,169,374,383]
[null,null,null,null,169,178,383,392]
[null,null,null,null,178,187,392,402]
[null,null,null,null,187,196,402,412]
[null,null,null,null,196,205,412,422]
[null,null,null,null,205,215,422,432]
[null,null,null,null,215,226,432,442]
[null,null,null,null,226,237,442,453]
[null,null,null,null,237,249,453,464]
[null,null,null,null,249,261,464,475]
[null,null,null,null,261,274,475,487]
[null,null,null,null,274,287,487,499]
[null,null,null,null,287,301,499,511]
[null,null,null,null,301,316,511,523]
[null,null,null,null,316,332,523,536]
[null,null,null,null,332,348,536,549]
[null,null,null,null,348,365,549,562]
[null,null,null,null,365,383,562,576]
[null,null,null,null,383,402,576,590]
[null,null,null,null,402,422,590,604]
[null,null,null,null,422,442,604,619]
[null,null,null,null,442,464,619,634]
[null,null,null,null,464,487,634,649]
[null,null,null,null,487,511,649,665]
[null,null,null,null,511,536,665,681]
[null,null,null,null,536,562,681,698]
[null,null,null,null,562,590,698,715]
[null,null,null,null,590,619,715,732]
[null,null,null,null,619,649,732,750]
[null,null,null,null,649,681,750,768]
[null,null,null,null,681,715,768,787]
[null,null,null,null,715,750,787,806]
[null,null,null,null,750,787,806,825]
[null,null,null,null,787,825,825,845]
[null,null,null,null,825,866,845,866]
[null,null,null,null,866,909,866,887]
[null,null,null,null,909,953,887,909]
[null,null,null,null,953,1000,909,931]
[null,null,null,null,null,null,931,953]
[null,null,null,null,null,null,953,976]
[null,null,null,null,null,null,976,1000]

{"sheet":"Extra","index":5,"n_rows":6,"n_cols":2,"rows_kept":6,"cut":false,"hidden":false,"merged":[]}
[]
[]
[null,"Validation Options"]
[null,"Open"]
[null,"Complete"]
[null,"Not Applicable"]

{"sheet":"partData","index":6,"n_rows":578,"n_cols":29,"rows_kept":578,"cut":false,"hidden":false,"merged":[[27,5,27,10],[15,5,15,9]]}
[1,2,3,4,5,6,7,8,9,10,11,12,13,14,15,16,17,18,19,20,21,22,{"$f":"V1+1","v":23},{"$f":"W1+1","v":24},{"$f":"X1+1","v":25},26,27,28]
["Part #","VIN_min","VIN_max","Io,rated","Vref","VCC LDO Voltage","VIN_min_bias","R_HS","R_LS","tonmin","toffmin","OC Fault","OV Fault","EN_rise","EN_fall","OC max","Ioc_neg_max",null,null,null,"Ilim_min","ILIM_Tol","Rboot_rec"]
["TPS544C26",4,18,35,0.8,4.5,2.7,4,1,50,180,"Hiccup","Latch Off",1.2,1,40,-20,null,null,null,0]
["TPS548C26",4,18,35,0.8,4.5,2.7,4,1,50,180,"Hiccup","Latch Off",{"$f":"N3","v":1.2},1,39,-20,null,null,null,0]
[]
[null,null,null,null,null,null,null,null,null,null,null,null,null,null,null,null,null,null,null,null,null,null,null,null,null,null,null,null,0]
[null,"Selected device",{"$f":"DeviceCalculator!C9","v":"TPS548C26"},null,null,null,null,null,null,null,null,null,null,null,null,null,null,null,null,null,null,null,null,null,null,null,null,null,{"$f":"AC98/10","v":1E-3}]
[null,null,null,null,null,null,null,null,null,null,null,null,null,null,null,null,null,null,null,null,null,null,null,null,null,null,null,null,{"$f":"AC99/10","v":1.0200000000000001E-3}]
[null,"Configuration options",null,null,null,null,null,null,null,null,null,null,null,null,null,null,null,null,null,null,null,null,null,null,null,null,null,null,{"$f":"AC100/10","v":1.0500000000000002E-3}]
[null,"Pinstrap",null,null,null,null,null,null,null,null,null,null,null,null,null,null,null,null,null,null,null,null,"Extra step to round down",null,null,null,null,null,{"$f":"AC101/10","v":1.0700000000000002E-3}]
[null,"I2C",null,null,null,null,null,null,null,null,null,null,null,null,null,null,null,null,null,"rfb",{"$f":"DeviceCalculator!D128","v":28.81},{"$f":"INDEX(NSV,MATCH(MIN(ABS(NSV-U11)),ABS(NSV-U11),0))","v":28.7},null,null,null,null,null,null,{"$f":"AC107/10","v":1.24E-3}]
[null,null,null,null,null,null,null,null,null,null,null,null,null,null,null,null,null,null,null,"ren",{"$f":"DeviceCalculator!D151","v":0},{"$f":"INDEX(NSV,MATCH(MIN(ABS(NSV-U12)),ABS(NSV-U12),0))","v":0},null,null,null,null,null,null,1.2699999999999999E-3]
[null,null,null,null,null,null,null,null,null,null,null,null,null,null,null,null,null,null,null,"rtrip",{"$f":"I_lim_rec","v":19},{"$f":"INDEX(NSV,MATCH(MIN(ABS(NSV-U13)),ABS(NSV-U13),0))","v":19.100000000000001},{"$f":"INDEX(NSV,MATCH(MIN(ABS(NSV-U13/1.024)),ABS(NSV-U13/1.024),0))","v":18.7},{"$f":"IF(V13<=U13,V13,W13)","v":18.7},null,null,null,null,1.3000000000000002E-3]
[null,null,null,null,null,null,null,null,null,null,null,null,null,null,null,null,null,null,null,null,null,null,null,null,null,null,null,null,1.33E-3]
[null,"Frequency and LL mode",{"$f":"IF(OR(C7=A5,C7=A4),B10,B11)","v":"Pinstrap"},null,null,null,null,null,null,null,null,null,null,null,null,null,null,null,null,null,null,null,null,null,null,null,null,null,1.3700000000000001E-3]
[null,null,null,null,null,"Pinstrap table",null,null,null,null,null,null,null,null,null,null,null,null,null,null,null,null,null,null,null,null,null,null,1.3999999999999998E-3]
[null,"fsw options","LL options",null,null,"FSW(kHz)","Mode","RMODE(kΩ)",{"$f":"F17","v":"FSW(kHz)"},{"$f":"G17","v":"Mode"},null,null,null,null,null,null,null,null,null,null,null,null,null,null,null,null,null,null,1.4299999999999998E-3]
[null,600,"FCCM",null,{"$f":"CONCATENATE(F18&G18)","v":"600FCCM"},{"$f":"B18","v":600},{"$f":"C$18","v":"FCCM"},0,600,"FCCM",null,null,null,null,null,null,null,null,null,null,null,null,null,null,null,null,null,null,1.47E-3]
[null,800,"DCM",null,"1000FCCM",{"$f":"B20","v":1000},{"$f":"C$18","v":"FCCM"},1.5,1000,"FCCM",null,null,null,null,null,null,null,null,null,null,null,null,null,null,null,null,null,null,1.5E-3]
[null,1000,null,null,"1000FCCM",{"$f":"B20","v":1000},{"$f":"C$18","v":"FCCM"},2.4900000000000002,1000,"FCCM",null,null,null,null,null,null,null,null,null,null,null,null,null,null,null,null,null,null,1.5400000000000001E-3]
[null,1200,null,null,"1200FCCM",{"$f":"B21","v":1200},{"$f":"C$18","v":"FCCM"},3.48,1200,"FCCM",null,null,null,null,null,null,null,null,null,null,null,null,null,null,null,null,null,null,1.5800000000000002E-3]
[null,null,null,null,"600DCM",{"$f":"B18","v":600},{"$f":"C$19","v":"DCM"},10.5,600,"DCM",null,null,null,null,null,null,null,null,null,null,null,null,null,null,null,null,null,null,1.6199999999999999E-3]
[null,null,null,null,"800DCM",{"$f":"B19","v":800},{"$f":"C$19","v":"DCM"},12.1,800,"DCM",null,null,null,null,null,null,null,null,null,null,null,null,null,null,null,null,null,null,1.6499999999999998E-3]
[null,null,null,null,"1000DCM",{"$f":"B20","v":1000},{"$f":"C$19","v":"DCM"},14,1000,"DCM",null,null,null,null,null,null,null,null,null,null,null,null,null,null,null,null,null,null,1.6899999999999999E-3]
[null,null,null,null,"1200DCM",{"$f":"B21","v":1200},{"$f":"C$19","v":"DCM"},16.2,1200,"DCM",null,null,null,null,null,null,null,null,null,null,null,null,null,null,null,null,null,null,1.7399999999999998E-3]
[null,null,null,null,"800FCCM",{"$f":"B19","v":800},{"$f":"C$18","v":"FCCM"},"Float",800,"FCCM",null,null,null,null,null,null,null,null,null,null,null,null,null,null,null,null,null,null,1.7799999999999999E-3]
[null,null,null,null,null,null,null,null,null,null,null,null,null,null,null,null,null,null,null,null,null,null,null,null,null,null,null,null,1.82E-3]
[null,null,null,null,null,"I2C tables",null,null,null,null,null,null,null,null,null,null,null,null,null,null,null,null,null,null,null,null,null,null,{"$f":"AC124/10","v":1.8700000000000001E-3}]
[null,null,null,null,null,"FSW(kHz)","(33h) FREQUENCY_SWITCH","FSW(kHz)","Mode","(A0h) SYS_CONFIG1 [7]","Mode",null,null,null,null,null,null,null,null,null,null,null,null,null,null,null,null,null,1.9099999999999998E-3]
[null,null,null,null,null,{"$f":"B18","v":600},"0x00",{"$f":"F30","v":600},{"$f":"C18","v":"FCCM"},1,{"$f":"I30","v":"FCCM"},null,null,null,null,null,null,null,null,null,null,null,null,null,null,null,null,null,1.9599999999999999E-3]
[null,null,null,null,null,{"$f":"B19","v":800},"0x01",{"$f":"F31","v":800},{"$f":"C19","v":"DCM"},0,{"$f":"I31","v":"DCM"},null,null,null,null,null,null,null,null,null,null,null,null,null,null,null,null,null,{"$f":"AC127/10","v":2E-3}]
[null,null,null,null,null,{"$f":"B20","v":1000},"0x02",{"$f":"F32","v":1000},null,null,null,null,null,null,null,null,null,null,null,null,null,null,null,null,null,null,null,null,2.0499999999999997E-3]
[null,null,null,null,null,{"$f":"B21","v":1200},"0x03",{"$f":"F33","v":1200},null,null,null,null,null,null,null,null,null,null,null,null,null,null,null,null,null,null,null,null,2.1000000000000003E-3]
[null,"Current limit",{"$f":"IF(OR(C7=A5,C7=A4),B10,B11)","v":"Pinstrap"},null,null,null,null,null,null,null,null,null,null,null,null,null,null,null,null,null,null,null,null,null,null,null,null,null,2.15E-3]
[null,null,null,null,null,null,"TPS544C26",null,null,null,null,null,null,null,null,null,null,null,null,null,null,null,null,null,null,null,null,null,2.2100000000000002E-3]
[null,"ILIM options",">I_lim_target?",null,null,null,null,"ILIM","(C0h) ICC_MAX","hex","ILIM",null,null,null,null,null,null,null,null,null,null,null,null,null,null,null,null,null,2.2599999999999999E-3]
[null,{"$f":"IF(C$7=G$35,H37,IF(C$7=G$46,H48,IF(C$7=G$57,H59)))","v":12},{"$f":"AND(I_lim_target<B37,B37<>\"N/A\")","v":false},{"$f":"IF(C$7=G$35,J37,IF(C$7=G$46,I48,IF(C$7=G$57,I59)))","v":7.5},{"$f":"B37","v":12},null,null,6,"000",{"$f":"CONCATENATE(\"0x\",BIN2HEX(CONCATENATE(I37,0)),\"0\")","v":"0x00"},6,null,null,null,null,null,null,null,null,null,null,null,null,null,null,null,null,null,2.32E-3]
[null,19,true,{"$f":"IF(C$7=G$35,J38,IF(C$7=G$46,I49,IF(C$7=G$57,I60)))","v":12.1},19,null,null,10,"001",{"$f":"CONCATENATE(\"0x\",BIN2HEX(CONCATENATE(I38,0)),\"0\")","v":"0x20"},10,null,null,null,null,null,null,null,null,null,null,null,null,null,null,null,null,null,2.3700000000000001E-3]
[null,26,true,16.2,26,null,null,15,"010","0x40",15,null,null,null,null,null,null,null,null,null,null,null,null,null,null,null,null,null,2.4300000000000003E-3]
[null,33,true,21.5,33,null,null,20,"011","0x60",20,null,null,null,null,null,null,null,null,null,null,null,null,null,null,null,null,null,2.49E-3]
[null,39,true,24.9,39,null,null,25,"100","0x80",25,null,null,null,null,null,null,null,null,null,null,null,null,null,null,null,null,null,2.5500000000000002E-3]
[null,"N/A",false,"Invalid","N/A",null,null,30,"101","0xA0",30,null,null,null,null,null,null,null,null,null,null,null,null,null,null,null,null,null,2.6100000000000003E-3]
[null,"N/A",false,"Invalid","N/A",null,null,35,"110","0xC0",35,null,null,null,null,null,null,null,null,null,null,null,null,null,null,null,null,null,2.6700000000000001E-3]
[null,"N/A",false,"Invalid","N/A",null,null,40,"111","0xE0",40,null,null,null,null,null,null,null,null,null,null,null,null,null,null,null,null,null,2.7400000000000002E-3]
[null,null,null,null,null,null,null,null,null,null,null,null,null,null,null,null,null,null,null,null,null,null,null,null,null,null,null,null,2.7999999999999995E-3]
[null,null,null,null,null,null,"TPS544C27",null,null,null,null,null,null,null,null,null,null,null,null,null,null,null,null,null,null,null,null,null,2.8700000000000002E-3]
[null,null,null,null,null,null,null,"ILIM","RILIM","ILIM",null,null,null,null,null,null,null,null,null,null,null,null,null,null,null,null,null,null,2.9399999999999999E-3]
[null,null,null,null,null,null,null,10,11,{"$f":"H48","v":10},null,null,null,null,null,null,null,null,null,null,null,null,null,null,null,null,null,null,3.0099999999999997E-3]
[null,"Soft-Start","Pinstrap",null,null,null,null,15,15.4,15,null,null,null,null,null,null,null,null,null,null,null,null,null,null,null,null,null,null,3.0899999999999999E-3]
[null,null,null,null,null,null,null,20,21,20,null,null,null,null,null,null,null,null,null,null,null,null,null,null,null,null,null,null,3.1600000000000005E-3]
[null,"SS time ms","RAMP","Fault Response","Resistance kohm",null,null,25,26.1,25,null,null,null,null,null,null,null,null,null,null,null,null,null,null,null,null,null,null,3.2399999999999998E-3]
[null,1,"RAMP1","Latch-off",0,null,null,30,31.6,30,null,null,null,null,null,null,null,null,null,null,null,null,null,null,null,null,null,null,3.3199999999999992E-3]
[null,2,"RAMP1","Latch-off",1.5,null,null,35,37.4,35,null,null,null,null,null,null,null,null,null,null,null,null,null,null,null,null,null,null,3.3999999999999994E-3]
[null,4,"RAMP1","Latch-off",2.4900000000000002,null,null,40,43.2,40,null,null,null,null,null,null,null,null,null,null,null,null,null,null,null,null,null,null,3.4799999999999996E-3]
[null,8,"RAMP1","Latch-off",3.48,null,null,"N/A","Invalid","N/A",null,null,null,null,null,null,null,null,null,null,null,null,null,null,null,null,null,null,3.5699999999999994E-3]
[null,1,"RAMP2","Latch-off",4.53,null,null,null,null,null,null,null,null,null,null,null,null,null,null,null,null,null,null,null,null,null,null,null,3.6499999999999996E-3]
[null,2,"RAMP2","Latch-off",5.76,null,"TPS548C26",null,null,null,null,null,null,null,null,null,null,null,null,null,null,null,null,null,null,null,null,null,3.7400000000000003E-3]
[null,4,"RAMP2","Latch-off",7.32,null,null,"ILIM","RILIM","ILIM",null,null,null,null,null,null,null,null,null,null,null,null,null,null,null,null,null,null,3.8300000000000001E-3]
[null,8,"RAMP2","Latch-off",8.8699999999999992,null,null,12,7.5,{"$f":"H59","v":12},null,null,null,null,null,null,null,null,null,null,null,null,null,null,null,null,null,null,3.9199999999999999E-3]
[null,1,"RAMP1","Hiccup",10.5,null,null,19,12.1,19,null,null,null,null,null,null,null,null,null,null,null,null,null,null,null,null,null,null,4.0200000000000001E-3]
[null,2,"RAMP1","Hiccup",12.1,null,null,26,16.2,26,null,null,null,null,null,null,null,null,null,null,null,null,null,null,null,null,null,null,4.1200000000000004E-3]
[null,4,"RAMP1","Hiccup",14,null,null,33,21.5,33,null,null,null,null,null,null,null,null,null,null,null,null,null,null,null,null,null,null,4.2199999999999998E-3]
[null,8,"RAMP1","Hiccup",16.2,null,null,39,24.9,39,null,null,null,null,null,null,null,null,null,null,null,null,null,null,null,null,null,null,{"$f":"AC159/10","v":4.3200000000000001E-3}]
[null,1,"RAMP2","Hiccup",18.7,null,null,"N/A","Invalid","N/A",null,null,null,null,null,null,null,null,null,null,null,null,null,null,null,null,null,null,4.4200000000000003E-3]
[null,2,"RAMP2","Hiccup",21.5,null,null,"N/A","Invalid","N/A",null,null,null,null,null,null,null,null,null,null,null,null,null,null,null,null,null,null,4.5300000000000002E-3]
[null,4,"RAMP2","Hiccup",24.9,null,null,"N/A","Invalid","N/A",null,null,null,null,null,null,null,null,null,null,null,null,null,null,null,null,null,null,4.64E-3]
[null,8,"RAMP2","Hiccup",28.7,null,null,null,null,null,null,null,null,null,null,null,null,null,null,null,null,null,null,null,null,null,null,null,4.7499999999999999E-3]
[null,4,"RAMP1","Latch-off","OPEN",null,null,null,null,null,null,null,null,null,null,null,null,null,null,null,null,null,null,null,null,null,null,null,4.8700000000000002E-3]
[null,null,null,null,null,null,null,null,null,null,null,null,null,null,null,null,null,null,null,null,null,null,null,null,null,null,null,null,4.9899999999999996E-3]
[null,null,null,null,null,null,null,null,null,null,null,null,null,null,null,null,null,null,null,null,null,null,null,null,null,null,null,null,5.11E-3]
[null,null,null,null,null,null,null,null,null,null,null,null,null,null,null,null,null,null,null,null,null,null,null,null,null,null,null,null,5.2300000000000003E-3]
[null,"I2C Addr(h)","Resistance kohm",null,null,null,null,null,null,null,null,null,null,null,null,null,null,null,null,null,null,null,null,null,null,null,null,null,5.3600000000000002E-3]
[null,70,0,null,null,null,null,null,null,null,null,null,null,null,null,null,null,null,null,null,null,null,null,null,null,null,null,null,5.4900000000000001E-3]
[null,71,5.62,null,null,null,null,null,null,null,null,null,null,null,null,null,null,null,null,null,null,null,null,null,null,null,null,null,5.6200000000000009E-3]
[null,72,9.5299999999999994,null,null,null,null,null,null,null,null,null,null,null,null,null,null,null,null,null,null,null,null,null,null,null,null,null,5.7599999999999995E-3]
[null,73,14,null,null,null,null,null,null,null,null,null,null,null,null,null,null,null,null,null,null,null,null,null,null,null,null,null,5.9000000000000007E-3]
[null,74,21,null,null,null,null,null,null,null,null,null,null,null,null,null,null,null,null,null,null,null,null,null,null,null,null,null,6.0399999999999994E-3]
[null,75,30.1,null,null,null,null,null,null,null,null,null,null,null,null,null,null,null,null,null,null,null,null,null,null,null,null,null,6.1899999999999993E-3]
[null,76,36.5,null,null,null,null,null,null,null,null,null,null,null,null,null,null,null,null,null,null,null,null,null,null,null,null,null,6.3400000000000001E-3]
[null,77,43.2,null,null,null,null,null,null,null,null,null,null,null,null,null,null,null,null,null,null,null,null,null,null,null,null,null,6.4900000000000001E-3]
[null,78,51.1,null,null,null,null,null,null,null,null,null,null,null,null,null,null,null,null,null,null,null,null,null,null,null,null,null,{"$f":"AC177/10","v":6.6500000000000005E-3}]
[null,79,61.9,null,null,null,null,null,null,null,null,null,null,null,null,null,null,null,null,null,null,null,null,null,null,null,null,null,{"$f":"AC178/10","v":6.8099999999999992E-3}]
[null,"7A",75,null,null,null,null,null,null,null,null,null,null,null,null,null,null,null,null,null,null,null,null,null,null,null,null,null,6.9800000000000001E-3]
[null,"7B",88.7,null,null,null,null,null,null,null,null,null,null,null,null,null,null,null,null,null,null,null,null,null,null,null,null,null,7.150000000000001E-3]
[null,"7C",105,null,null,null,null,null,null,null,null,null,null,null,null,null,null,null,null,null,null,null,null,null,null,null,null,null,7.3200000000000001E-3]
[null,"7D",127,null,null,null,null,null,null,null,null,null,null,null,null,null,null,null,null,null,null,null,null,null,null,null,null,null,7.4999999999999997E-3]
[null,"7E",150,null,null,null,null,null,null,null,null,null,null,null,null,null,null,null,null,null,null,null,null,null,null,null,null,null,7.6800000000000011E-3]
[null,"7F","floating",null,null,null,null,null,null,null,null,null,null,null,null,null,null,null,null,null,null,null,null,null,null,null,null,null,7.8700000000000003E-3]
[null,null,null,null,null,null,null,null,null,null,null,null,null,null,null,null,null,null,null,null,null,null,null,null,null,null,null,null,8.0600000000000012E-3]
[null,null,null,null,null,null,null,null,null,null,null,null,null,null,null,null,null,null,null,null,null,null,null,null,null,null,null,null,8.2499999999999987E-3]
[null,null,null,null,null,null,null,null,null,null,null,null,null,null,null,null,null,null,null,null,null,null,null,null,null,null,null,null,8.4499999999999992E-3]
[null,null,null,null,null,null,null,null,null,null,null,null,null,null,null,null,null,null,null,null,null,null,null,null,null,null,null,null,8.6599999999999993E-3]
[null,null,null,null,null,null,null,null,null,null,null,null,null,null,null,null,null,null,null,null,null,null,null,null,null,null,null,null,8.8699999999999994E-3]
[null,null,null,null,null,null,null,null,null,null,null,null,null,null,null,null,null,null,null,null,null,null,null,null,null,null,null,null,9.0900000000000009E-3]
[null,null,null,null,null,null,null,null,null,null,null,null,null,null,null,null,null,null,null,null,null,null,null,null,null,null,null,null,9.3100000000000006E-3]
[null,null,null,null,null,null,null,null,null,null,null,null,null,null,null,null,null,null,null,null,null,null,null,null,null,null,null,null,9.5300000000000003E-3]
[null,null,null,null,null,null,null,null,null,null,null,null,null,null,null,null,null,null,null,null,null,null,null,null,null,null,null,null,9.7599999999999996E-3]
[null,null,null,null,null,null,null,null,null,null,null,null,null,null,null,null,null,null,null,null,null,null,null,null,null,null,null,null,0.01]
[null,null,null,null,null,null,null,null,null,null,null,null,null,null,null,null,null,null,null,null,null,null,null,null,null,null,null,null,1.0200000000000001E-2]
[null,null,null,null,null,null,null,null,null,null,null,null,null,null,null,null,null,null,null,null,null,null,null,null,null,null,null,null,1.0500000000000001E-2]
[null,null,null,null,null,null,null,null,null,null,null,null,null,null,null,null,null,null,null,null,null,null,null,null,null,null,null,null,1.0700000000000001E-2]
[null,null,null,null,null,null,null,null,null,null,null,null,null,null,null,null,null,null,null,null,null,null,null,null,null,null,null,null,1.1000000000000001E-2]
[null,null,null,null,null,null,null,null,null,null,null,null,null,null,null,null,null,null,null,null,null,null,null,null,null,null,null,null,1.1299999999999999E-2]
[null,null,null,null,null,null,null,null,null,null,null,null,null,null,null,null,null,null,null,null,null,null,null,null,null,null,null,null,1.15E-2]
[null,null,null,null,null,null,null,null,null,null,null,null,null,null,null,null,null,null,null,null,null,null,null,null,null,null,null,null,1.18E-2]
[null,null,null,null,null,null,null,null,null,null,null,null,null,null,null,null,null,null,null,null,null,null,null,null,null,null,null,null,1.21E-2]
[null,null,null,null,null,null,null,null,null,null,null,null,null,null,null,null,null,null,null,null,null,null,null,null,null,null,null,null,1.24E-2]
[null,null,null,null,null,null,null,null,null,null,null,null,null,null,null,null,null,null,null,null,null,null,null,null,null,null,null,null,1.2699999999999999E-2]
[null,null,null,null,null,null,null,null,null,null,null,null,null,null,null,null,null,null,null,null,null,null,null,null,null,null,null,null,1.3000000000000001E-2]
[null,null,null,null,null,null,null,null,null,null,null,null,null,null,null,null,null,null,null,null,null,null,null,null,null,null,null,null,1.3300000000000001E-2]
[null,null,null,null,null,null,null,null,null,null,null,null,null,null,null,null,null,null,null,null,null,null,null,null,null,null,null,null,1.37E-2]
[null,null,null,null,null,null,null,null,null,null,null,null,null,null,null,null,null,null,null,null,null,null,null,null,null,null,null,null,1.3999999999999999E-2]
[null,null,null,null,null,null,null,null,null,null,null,null,null,null,null,null,null,null,null,null,null,null,null,null,null,null,null,null,1.4299999999999998E-2]
[null,null,null,null,null,null,null,null,null,null,null,null,null,null,null,null,null,null,null,null,null,null,null,null,null,null,null,null,1.47E-2]
[null,null,null,null,null,null,null,null,null,null,null,null,null,null,null,null,null,null,null,null,null,null,null,null,null,null,null,null,1.4999999999999999E-2]
[null,null,null,null,null,null,null,null,null,null,null,null,null,null,null,null,null,null,null,null,null,null,null,null,null,null,null,null,1.54E-2]
[null,null,null,null,null,null,null,null,null,null,null,null,null,null,null,null,null,null,null,null,null,null,null,null,null,null,null,null,1.5800000000000002E-2]
[null,null,null,null,null,null,null,null,null,null,null,null,null,null,null,null,null,null,null,null,null,null,null,null,null,null,null,null,1.6199999999999999E-2]
[null,null,null,null,null,null,null,null,null,null,null,null,null,null,null,null,null,null,null,null,null,null,null,null,null,null,null,null,1.6499999999999997E-2]
[null,null,null,null,null,null,null,null,null,null,null,null,null,null,null,null,null,null,null,null,null,null,null,null,null,null,null,null,1.6899999999999998E-2]
[null,null,null,null,null,null,null,null,null,null,null,null,null,null,null,null,null,null,null,null,null,null,null,null,null,null,null,null,1.7399999999999999E-2]
[null,null,null,null,null,null,null,null,null,null,null,null,null,null,null,null,null,null,null,null,null,null,null,null,null,null,null,null,1.78E-2]
[null,null,null,null,null,null,null,null,null,null,null,null,null,null,null,null,null,null,null,null,null,null,null,null,null,null,null,null,1.8200000000000001E-2]
[null,null,null,null,null,null,null,null,null,null,null,null,null,null,null,null,null,null,null,null,null,null,null,null,null,null,null,null,1.8700000000000001E-2]
[null,null,null,null,null,null,null,null,null,null,null,null,null,null,null,null,null,null,null,null,null,null,null,null,null,null,null,null,1.9099999999999999E-2]
[null,null,null,null,null,null,null,null,null,null,null,null,null,null,null,null,null,null,null,null,null,null,null,null,null,null,null,null,1.9599999999999999E-2]
[null,null,null,null,null,null,null,null,null,null,null,null,null,null,null,null,null,null,null,null,null,null,null,null,null,null,null,null,0.02]
[null,null,null,null,null,null,null,null,null,null,null,null,null,null,null,null,null,null,null,null,null,null,null,null,null,null,null,null,2.0499999999999997E-2]
[null,null,null,null,null,null,null,null,null,null,null,null,null,null,null,null,null,null,null,null,null,null,null,null,null,null,null,null,2.1000000000000001E-2]
[null,null,null,null,null,null,null,null,null,null,null,null,null,null,null,null,null,null,null,null,null,null,null,null,null,null,null,null,2.1499999999999998E-2]
[null,null,null,null,null,null,null,null,null,null,null,null,null,null,null,null,null,null,null,null,null,null,null,null,null,null,null,null,2.2100000000000002E-2]
[null,null,null,null,null,null,null,null,null,null,null,null,null,null,null,null,null,null,null,null,null,null,null,null,null,null,null,null,2.2599999999999999E-2]
[null,null,null,null,null,null,null,null,null,null,null,null,null,null,null,null,null,null,null,null,null,null,null,null,null,null,null,null,2.3199999999999998E-2]
[null,null,null,null,null,null,null,null,null,null,null,null,null,null,null,null,null,null,null,null,null,null,null,null,null,null,null,null,2.3700000000000002E-2]
[null,null,null,null,null,null,null,null,null,null,null,null,null,null,null,null,null,null,null,null,null,null,null,null,null,null,null,null,2.4300000000000002E-2]
[null,null,null,null,null,null,null,null,null,null,null,null,null,null,null,null,null,null,null,null,null,null,null,null,null,null,null,null,2.4900000000000002E-2]
[null,null,null,null,null,null,null,null,null,null,null,null,null,null,null,null,null,null,null,null,null,null,null,null,null,null,null,null,2.5500000000000002E-2]
[null,null,null,null,null,null,null,null,null,null,null,null,null,null,null,null,null,null,null,null,null,null,null,null,null,null,null,null,2.6100000000000002E-2]
[null,null,null,null,null,null,null,null,null,null,null,null,null,null,null,null,null,null,null,null,null,null,null,null,null,null,null,null,2.6700000000000002E-2]
[null,null,null,null,null,null,null,null,null,null,null,null,null,null,null,null,null,null,null,null,null,null,null,null,null,null,null,null,2.7400000000000001E-2]
[null,null,null,null,null,null,null,null,null,null,null,null,null,null,null,null,null,null,null,null,null,null,null,null,null,null,null,null,2.7999999999999997E-2]
[null,null,null,null,null,null,null,null,null,null,null,null,null,null,null,null,null,null,null,null,null,null,null,null,null,null,null,null,2.8700000000000003E-2]
[null,null,null,null,null,null,null,null,null,null,null,null,null,null,null,null,null,null,null,null,null,null,null,null,null,null,null,null,2.9399999999999999E-2]
[null,null,null,null,null,null,null,null,null,null,null,null,null,null,null,null,null,null,null,null,null,null,null,null,null,null,null,null,3.0099999999999998E-2]
[null,null,null,null,null,null,null,null,null,null,null,null,null,null,null,null,null,null,null,null,null,null,null,null,null,null,null,null,{"$f":"AC241/10","v":3.09E-2}]
[null,null,null,null,null,null,null,null,null,null,null,null,null,null,null,null,null,null,null,null,null,null,null,null,null,null,null,null,3.1600000000000003E-2]
[null,null,null,null,null,null,null,null,null,null,null,null,null,null,null,null,null,null,null,null,null,null,null,null,null,null,null,null,3.2399999999999998E-2]
[null,null,null,null,null,null,null,null,null,null,null,null,null,null,null,null,null,null,null,null,null,null,null,null,null,null,null,null,3.3199999999999993E-2]
[null,null,null,null,null,null,null,null,null,null,null,null,null,null,null,null,null,null,null,null,null,null,null,null,null,null,null,null,3.3999999999999996E-2]
[null,null,null,null,null,null,null,null,null,null,null,null,null,null,null,null,null,null,null,null,null,null,null,null,null,null,null,null,3.4799999999999998E-2]
[null,null,null,null,null,null,null,null,null,null,null,null,null,null,null,null,null,null,null,null,null,null,null,null,null,null,null,null,3.5699999999999996E-2]
[null,null,null,null,null,null,null,null,null,null,null,null,null,null,null,null,null,null,null,null,null,null,null,null,null,null,null,null,3.6499999999999998E-2]
[null,null,null,null,null,null,null,null,null,null,null,null,null,null,null,null,null,null,null,null,null,null,null,null,null,null,null,null,3.7400000000000003E-2]
[null,null,null,null,null,null,null,null,null,null,null,null,null,null,null,null,null,null,null,null,null,null,null,null,null,null,null,null,3.8300000000000001E-2]
[null,null,null,null,null,null,null,null,null,null,null,null,null,null,null,null,null,null,null,null,null,null,null,null,null,null,null,null,3.9199999999999999E-2]
[null,null,null,null,null,null,null,null,null,null,null,null,null,null,null,null,null,null,null,null,null,null,null,null,null,null,null,null,4.02E-2]
[null,null,null,null,null,null,null,null,null,null,null,null,null,null,null,null,null,null,null,null,null,null,null,null,null,null,null,null,4.1200000000000001E-2]
[null,null,null,null,null,null,null,null,null,null,null,null,null,null,null,null,null,null,null,null,null,null,null,null,null,null,null,null,4.2200000000000001E-2]
[null,null,null,null,null,null,null,null,null,null,null,null,null,null,null,null,null,null,null,null,null,null,null,null,null,null,null,null,4.3200000000000002E-2]
[null,null,null,null,null,null,null,null,null,null,null,null,null,null,null,null,null,null,null,null,null,null,null,null,null,null,null,null,4.4200000000000003E-2]
[null,null,null,null,null,null,null,null,null,null,null,null,null,null,null,null,null,null,null,null,null,null,null,null,null,null,null,null,4.53E-2]
[null,null,null,null,null,null,null,null,null,null,null,null,null,null,null,null,null,null,null,null,null,null,null,null,null,null,null,null,4.6399999999999997E-2]
[null,null,null,null,null,null,null,null,null,null,null,null,null,null,null,null,null,null,null,null,null,null,null,null,null,null,null,null,4.7500000000000001E-2]
[null,null,null,null,null,null,null,null,null,null,null,null,null,null,null,null,null,null,null,null,null,null,null,null,null,null,null,null,4.87E-2]
[null,null,null,null,null,null,null,null,null,null,null,null,null,null,null,null,null,null,null,null,null,null,null,null,null,null,null,null,4.99E-2]
[null,null,null,null,null,null,null,null,null,null,null,null,null,null,null,null,null,null,null,null,null,null,null,null,null,null,null,null,5.11E-2]
[null,null,null,null,null,null,null,null,null,null,null,null,null,null,null,null,null,null,null,null,null,null,null,null,null,null,null,null,5.2299999999999999E-2]
[null,null,null,null,null,null,null,null,null,null,null,null,null,null,null,null,null,null,null,null,null,null,null,null,null,null,null,null,5.3600000000000002E-2]
[null,null,null,null,null,null,null,null,null,null,null,null,null,null,null,null,null,null,null,null,null,null,null,null,null,null,null,null,5.4900000000000004E-2]
[null,null,null,null,null,null,null,null,null,null,null,null,null,null,null,null,null,null,null,null,null,null,null,null,null,null,null,null,5.6200000000000007E-2]
[null,null,null,null,null,null,null,null,null,null,null,null,null,null,null,null,null,null,null,null,null,null,null,null,null,null,null,null,5.7599999999999998E-2]
[null,null,null,null,null,null,null,null,null,null,null,null,null,null,null,null,null,null,null,null,null,null,null,null,null,null,null,null,5.9000000000000011E-2]
[null,null,null,null,null,null,null,null,null,null,null,null,null,null,null,null,null,null,null,null,null,null,null,null,null,null,null,null,6.0399999999999995E-2]
[null,null,null,null,null,null,null,null,null,null,null,null,null,null,null,null,null,null,null,null,null,null,null,null,null,null,null,null,6.1899999999999997E-2]
[null,null,null,null,null,null,null,null,null,null,null,null,null,null,null,null,null,null,null,null,null,null,null,null,null,null,null,null,6.3399999999999998E-2]
[null,null,null,null,null,null,null,null,null,null,null,null,null,null,null,null,null,null,null,null,null,null,null,null,null,null,null,null,6.4899999999999999E-2]
[null,null,null,null,null,null,null,null,null,null,null,null,null,null,null,null,null,null,null,null,null,null,null,null,null,null,null,null,6.6500000000000004E-2]
[null,null,null,null,null,null,null,null,null,null,null,null,null,null,null,null,null,null,null,null,null,null,null,null,null,null,null,null,6.8099999999999994E-2]
[null,null,null,null,null,null,null,null,null,null,null,null,null,null,null,null,null,null,null,null,null,null,null,null,null,null,null,null,6.9800000000000001E-2]
[null,null,null,null,null,null,null,null,null,null,null,null,null,null,null,null,null,null,null,null,null,null,null,null,null,null,null,null,7.1500000000000008E-2]
[null,null,null,null,null,null,null,null,null,null,null,null,null,null,null,null,null,null,null,null,null,null,null,null,null,null,null,null,7.3200000000000001E-2]
[null,null,null,null,null,null,null,null,null,null,null,null,null,null,null,null,null,null,null,null,null,null,null,null,null,null,null,null,7.4999999999999997E-2]
[null,null,null,null,null,null,null,null,null,null,null,null,null,null,null,null,null,null,null,null,null,null,null,null,null,null,null,null,7.6800000000000007E-2]
[null,null,null,null,null,null,null,null,null,null,null,null,null,null,null,null,null,null,null,null,null,null,null,null,null,null,null,null,7.8700000000000006E-2]
[null,null,null,null,null,null,null,null,null,null,null,null,null,null,null,null,null,null,null,null,null,null,null,null,null,null,null,null,8.0600000000000005E-2]
[null,null,null,null,null,null,null,null,null,null,null,null,null,null,null,null,null,null,null,null,null,null,null,null,null,null,null,null,8.249999999999999E-2]
[null,null,null,null,null,null,null,null,null,null,null,null,null,null,null,null,null,null,null,null,null,null,null,null,null,null,null,null,8.4499999999999992E-2]
[null,null,null,null,null,null,null,null,null,null,null,null,null,null,null,null,null,null,null,null,null,null,null,null,null,null,null,null,8.6599999999999996E-2]
[null,null,null,null,null,null,null,null,null,null,null,null,null,null,null,null,null,null,null,null,null,null,null,null,null,null,null,null,8.8699999999999987E-2]
[null,null,null,null,null,null,null,null,null,null,null,null,null,null,null,null,null,null,null,null,null,null,null,null,null,null,null,null,9.0900000000000009E-2]
[null,null,null,null,null,null,null,null,null,null,null,null,null,null,null,null,null,null,null,null,null,null,null,null,null,null,null,null,9.3100000000000002E-2]
[null,null,null,null,null,null,null,null,null,null,null,null,null,null,null,null,null,null,null,null,null,null,null,null,null,null,null,null,9.5299999999999996E-2]
[null,null,null,null,null,null,null,null,null,null,null,null,null,null,null,null,null,null,null,null,null,null,null,null,null,null,null,null,9.7599999999999992E-2]
[null,null,null,null,null,null,null,null,null,null,null,null,null,null,null,null,null,null,null,null,null,null,null,null,null,null,null,null,0.1]
[null,null,null,null,null,null,null,null,null,null,null,null,null,null,null,null,null,null,null,null,null,null,null,null,null,null,null,null,0.10200000000000001]
[null,null,null,null,null,null,null,null,null,null,null,null,null,null,null,null,null,null,null,null,null,null,null,null,null,null,null,null,0.10500000000000001]
[null,null,null,null,null,null,null,null,null,null,null,null,null,null,null,null,null,null,null,null,null,null,null,null,null,null,null,null,0.10700000000000001]
[null,null,null,null,null,null,null,null,null,null,null,null,null,null,null,null,null,null,null,null,null,null,null,null,null,null,null,null,0.11000000000000001]
[null,null,null,null,null,null,null,null,null,null,null,null,null,null,null,null,null,null,null,null,null,null,null,null,null,null,null,null,0.11299999999999999]
[null,null,null,null,null,null,null,null,null,null,null,null,null,null,null,null,null,null,null,null,null,null,null,null,null,null,null,null,0.11499999999999999]
[null,null,null,null,null,null,null,null,null,null,null,null,null,null,null,null,null,null,null,null,null,null,null,null,null,null,null,null,0.11799999999999999]
[null,null,null,null,null,null,null,null,null,null,null,null,null,null,null,null,null,null,null,null,null,null,null,null,null,null,null,null,0.121]
[null,null,null,null,null,null,null,null,null,null,null,null,null,null,null,null,null,null,null,null,null,null,null,null,null,null,null,null,0.124]
[null,null,null,null,null,null,null,null,null,null,null,null,null,null,null,null,null,null,null,null,null,null,null,null,null,null,null,null,0.127]
[null,null,null,null,null,null,null,null,null,null,null,null,null,null,null,null,null,null,null,null,null,null,null,null,null,null,null,null,0.13]
[null,null,null,null,null,null,null,null,null,null,null,null,null,null,null,null,null,null,null,null,null,null,null,null,null,null,null,null,0.13300000000000001]
[null,null,null,null,null,null,null,null,null,null,null,null,null,null,null,null,null,null,null,null,null,null,null,null,null,null,null,null,0.13700000000000001]
[null,null,null,null,null,null,null,null,null,null,null,null,null,null,null,null,null,null,null,null,null,null,null,null,null,null,null,null,0.13999999999999999]
[null,null,null,null,null,null,null,null,null,null,null,null,null,null,null,null,null,null,null,null,null,null,null,null,null,null,null,null,{"$f":"AC305/10","v":0.14299999999999999}]
[null,null,null,null,null,null,null,null,null,null,null,null,null,null,null,null,null,null,null,null,null,null,null,null,null,null,null,null,0.14699999999999999]
[null,null,null,null,null,null,null,null,null,null,null,null,null,null,null,null,null,null,null,null,null,null,null,null,null,null,null,null,0.15]
[null,null,null,null,null,null,null,null,null,null,null,null,null,null,null,null,null,null,null,null,null,null,null,null,null,null,null,null,0.154]
[null,null,null,null,null,null,null,null,null,null,null,null,null,null,null,null,null,null,null,null,null,null,null,null,null,null,null,null,0.158]
[null,null,null,null,null,null,null,null,null,null,null,null,null,null,null,null,null,null,null,null,null,null,null,null,null,null,null,null,0.16200000000000001]
[null,null,null,null,null,null,null,null,null,null,null,null,null,null,null,null,null,null,null,null,null,null,null,null,null,null,null,null,0.16499999999999998]
[null,null,null,null,null,null,null,null,null,null,null,null,null,null,null,null,null,null,null,null,null,null,null,null,null,null,null,null,0.16899999999999998]
[null,null,null,null,null,null,null,null,null,null,null,null,null,null,null,null,null,null,null,null,null,null,null,null,null,null,null,null,0.17399999999999999]
[null,null,null,null,null,null,null,null,null,null,null,null,null,null,null,null,null,null,null,null,null,null,null,null,null,null,null,null,0.17799999999999999]
[null,null,null,null,null,null,null,null,null,null,null,null,null,null,null,null,null,null,null,null,null,null,null,null,null,null,null,null,0.182]
[null,null,null,null,null,null,null,null,null,null,null,null,null,null,null,null,null,null,null,null,null,null,null,null,null,null,null,null,0.187]
[null,null,null,null,null,null,null,null,null,null,null,null,null,null,null,null,null,null,null,null,null,null,null,null,null,null,null,null,0.191]
[null,null,null,null,null,null,null,null,null,null,null,null,null,null,null,null,null,null,null,null,null,null,null,null,null,null,null,null,0.19600000000000001]
[null,null,null,null,null,null,null,null,null,null,null,null,null,null,null,null,null,null,null,null,null,null,null,null,null,null,null,null,0.2]
[null,null,null,null,null,null,null,null,null,null,null,null,null,null,null,null,null,null,null,null,null,null,null,null,null,null,null,null,0.20499999999999999]
[null,null,null,null,null,null,null,null,null,null,null,null,null,null,null,null,null,null,null,null,null,null,null,null,null,null,null,null,0.21000000000000002]
[null,null,null,null,null,null,null,null,null,null,null,null,null,null,null,null,null,null,null,null,null,null,null,null,null,null,null,null,0.215]
[null,null,null,null,null,null,null,null,null,null,null,null,null,null,null,null,null,null,null,null,null,null,null,null,null,null,null,null,0.221]
[null,null,null,null,null,null,null,null,null,null,null,null,null,null,null,null,null,null,null,null,null,null,null,null,null,null,null,null,0.22599999999999998]
[null,null,null,null,null,null,null,null,null,null,null,null,null,null,null,null,null,null,null,null,null,null,null,null,null,null,null,null,0.23199999999999998]
[null,null,null,null,null,null,null,null,null,null,null,null,null,null,null,null,null,null,null,null,null,null,null,null,null,null,null,null,0.23700000000000002]
[null,null,null,null,null,null,null,null,null,null,null,null,null,null,null,null,null,null,null,null,null,null,null,null,null,null,null,null,0.24300000000000002]
[null,null,null,null,null,null,null,null,null,null,null,null,null,null,null,null,null,null,null,null,null,null,null,null,null,null,null,null,0.24900000000000003]
[null,null,null,null,null,null,null,null,null,null,null,null,null,null,null,null,null,null,null,null,null,null,null,null,null,null,null,null,0.255]
[null,null,null,null,null,null,null,null,null,null,null,null,null,null,null,null,null,null,null,null,null,null,null,null,null,null,null,null,0.26100000000000001]
[null,null,null,null,null,null,null,null,null,null,null,null,null,null,null,null,null,null,null,null,null,null,null,null,null,null,null,null,0.26700000000000002]
[null,null,null,null,null,null,null,null,null,null,null,null,null,null,null,null,null,null,null,null,null,null,null,null,null,null,null,null,0.27400000000000002]
[null,null,null,null,null,null,null,null,null,null,null,null,null,null,null,null,null,null,null,null,null,null,null,null,null,null,null,null,0.27999999999999997]
[null,null,null,null,null,null,null,null,null,null,null,null,null,null,null,null,null,null,null,null,null,null,null,null,null,null,null,null,0.28700000000000003]
[null,null,null,null,null,null,null,null,null,null,null,null,null,null,null,null,null,null,null,null,null,null,null,null,null,null,null,null,0.29399999999999998]
[null,null,null,null,null,null,null,null,null,null,null,null,null,null,null,null,null,null,null,null,null,null,null,null,null,null,null,null,0.30099999999999999]
[null,null,null,null,null,null,null,null,null,null,null,null,null,null,null,null,null,null,null,null,null,null,null,null,null,null,null,null,0.309]
[null,null,null,null,null,null,null,null,null,null,null,null,null,null,null,null,null,null,null,null,null,null,null,null,null,null,null,null,0.316]
[null,null,null,null,null,null,null,null,null,null,null,null,null,null,null,null,null,null,null,null,null,null,null,null,null,null,null,null,0.32400000000000001]
[null,null,null,null,null,null,null,null,null,null,null,null,null,null,null,null,null,null,null,null,null,null,null,null,null,null,null,null,0.33199999999999996]
[null,null,null,null,null,null,null,null,null,null,null,null,null,null,null,null,null,null,null,null,null,null,null,null,null,null,null,null,0.33999999999999997]
[null,null,null,null,null,null,null,null,null,null,null,null,null,null,null,null,null,null,null,null,null,null,null,null,null,null,null,null,0.34799999999999998]
[null,null,null,null,null,null,null,null,null,null,null,null,null,null,null,null,null,null,null,null,null,null,null,null,null,null,null,null,0.35699999999999998]
[null,null,null,null,null,null,null,null,null,null,null,null,null,null,null,null,null,null,null,null,null,null,null,null,null,null,null,null,0.36499999999999999]
[null,null,null,null,null,null,null,null,null,null,null,null,null,null,null,null,null,null,null,null,null,null,null,null,null,null,null,null,0.374]
[null,null,null,null,null,null,null,null,null,null,null,null,null,null,null,null,null,null,null,null,null,null,null,null,null,null,null,null,0.38300000000000001]
[null,null,null,null,null,null,null,null,null,null,null,null,null,null,null,null,null,null,null,null,null,null,null,null,null,null,null,null,0.39200000000000002]
[null,null,null,null,null,null,null,null,null,null,null,null,null,null,null,null,null,null,null,null,null,null,null,null,null,null,null,null,0.40199999999999997]
[null,null,null,null,null,null,null,null,null,null,null,null,null,null,null,null,null,null,null,null,null,null,null,null,null,null,null,null,0.41200000000000003]
[null,null,null,null,null,null,null,null,null,null,null,null,null,null,null,null,null,null,null,null,null,null,null,null,null,null,null,null,0.42199999999999999]
[null,null,null,null,null,null,null,null,null,null,null,null,null,null,null,null,null,null,null,null,null,null,null,null,null,null,null,null,0.43200000000000005]
[null,null,null,null,null,null,null,null,null,null,null,null,null,null,null,null,null,null,null,null,null,null,null,null,null,null,null,null,0.442]
[null,null,null,null,null,null,null,null,null,null,null,null,null,null,null,null,null,null,null,null,null,null,null,null,null,null,null,null,0.45300000000000001]
[null,null,null,null,null,null,null,null,null,null,null,null,null,null,null,null,null,null,null,null,null,null,null,null,null,null,null,null,0.46399999999999997]
[null,null,null,null,null,null,null,null,null,null,null,null,null,null,null,null,null,null,null,null,null,null,null,null,null,null,null,null,0.47499999999999998]
[null,null,null,null,null,null,null,null,null,null,null,null,null,null,null,null,null,null,null,null,null,null,null,null,null,null,null,null,0.48699999999999999]
[null,null,null,null,null,null,null,null,null,null,null,null,null,null,null,null,null,null,null,null,null,null,null,null,null,null,null,null,0.499]
[null,null,null,null,null,null,null,null,null,null,null,null,null,null,null,null,null,null,null,null,null,null,null,null,null,null,null,null,0.51100000000000001]
[null,null,null,null,null,null,null,null,null,null,null,null,null,null,null,null,null,null,null,null,null,null,null,null,null,null,null,null,0.52300000000000002]
[null,null,null,null,null,null,null,null,null,null,null,null,null,null,null,null,null,null,null,null,null,null,null,null,null,null,null,null,0.53600000000000003]
[null,null,null,null,null,null,null,null,null,null,null,null,null,null,null,null,null,null,null,null,null,null,null,null,null,null,null,null,0.54900000000000004]
[null,null,null,null,null,null,null,null,null,null,null,null,null,null,null,null,null,null,null,null,null,null,null,null,null,null,null,null,0.56200000000000006]
[null,null,null,null,null,null,null,null,null,null,null,null,null,null,null,null,null,null,null,null,null,null,null,null,null,null,null,null,0.57599999999999996]
[null,null,null,null,null,null,null,null,null,null,null,null,null,null,null,null,null,null,null,null,null,null,null,null,null,null,null,null,0.59000000000000008]
[null,null,null,null,null,null,null,null,null,null,null,null,null,null,null,null,null,null,null,null,null,null,null,null,null,null,null,null,0.60399999999999998]
[null,null,null,null,null,null,null,null,null,null,null,null,null,null,null,null,null,null,null,null,null,null,null,null,null,null,null,null,0.61899999999999999]
[null,null,null,null,null,null,null,null,null,null,null,null,null,null,null,null,null,null,null,null,null,null,null,null,null,null,null,null,0.63400000000000001]
[null,null,null,null,null,null,null,null,null,null,null,null,null,null,null,null,null,null,null,null,null,null,null,null,null,null,null,null,0.64900000000000002]
[null,null,null,null,null,null,null,null,null,null,null,null,null,null,null,null,null,null,null,null,null,null,null,null,null,null,null,null,{"$f":"AC369/10","v":0.66500000000000004}]
[null,null,null,null,null,null,null,null,null,null,null,null,null,null,null,null,null,null,null,null,null,null,null,null,null,null,null,null,0.68099999999999994]
[null,null,null,null,null,null,null,null,null,null,null,null,null,null,null,null,null,null,null,null,null,null,null,null,null,null,null,null,0.69800000000000006]
[null,null,null,null,null,null,null,null,null,null,null,null,null,null,null,null,null,null,null,null,null,null,null,null,null,null,null,null,0.71500000000000008]
[null,null,null,null,null,null,null,null,null,null,null,null,null,null,null,null,null,null,null,null,null,null,null,null,null,null,null,null,0.73199999999999998]
[null,null,null,null,null,null,null,null,null,null,null,null,null,null,null,null,null,null,null,null,null,null,null,null,null,null,null,null,0.75]
[null,null,null,null,null,null,null,null,null,null,null,null,null,null,null,null,null,null,null,null,null,null,null,null,null,null,null,null,0.76800000000000002]
[null,null,null,null,null,null,null,null,null,null,null,null,null,null,null,null,null,null,null,null,null,null,null,null,null,null,null,null,0.78700000000000003]
[null,null,null,null,null,null,null,null,null,null,null,null,null,null,null,null,null,null,null,null,null,null,null,null,null,null,null,null,0.80600000000000005]
[null,null,null,null,null,null,null,null,null,null,null,null,null,null,null,null,null,null,null,null,null,null,null,null,null,null,null,null,0.82499999999999996]
[null,null,null,null,null,null,null,null,null,null,null,null,null,null,null,null,null,null,null,null,null,null,null,null,null,null,null,null,0.84499999999999997]
[null,null,null,null,null,null,null,null,null,null,null,null,null,null,null,null,null,null,null,null,null,null,null,null,null,null,null,null,0.86599999999999999]
[null,null,null,null,null,null,null,null,null,null,null,null,null,null,null,null,null,null,null,null,null,null,null,null,null,null,null,null,0.8869999999999999]
[null,null,null,null,null,null,null,null,null,null,null,null,null,null,null,null,null,null,null,null,null,null,null,null,null,null,null,null,0.90900000000000003]
[null,null,null,null,null,null,null,null,null,null,null,null,null,null,null,null,null,null,null,null,null,null,null,null,null,null,null,null,0.93100000000000005]
[null,null,null,null,null,null,null,null,null,null,null,null,null,null,null,null,null,null,null,null,null,null,null,null,null,null,null,null,0.95299999999999996]
[null,null,null,null,null,null,null,null,null,null,null,null,null,null,null,null,null,null,null,null,null,null,null,null,null,null,null,null,0.97599999999999998]
[null,null,null,null,null,null,null,null,null,null,null,null,null,null,null,null,null,null,null,null,null,null,null,null,null,null,null,null,1]
[null,null,null,null,null,null,null,null,null,null,null,null,null,null,null,null,null,null,null,null,null,null,null,null,null,null,null,null,1.02]
[null,null,null,null,null,null,null,null,null,null,null,null,null,null,null,null,null,null,null,null,null,null,null,null,null,null,null,null,1.05]
[null,null,null,null,null,null,null,null,null,null,null,null,null,null,null,null,null,null,null,null,null,null,null,null,null,null,null,null,1.07]
[null,null,null,null,null,null,null,null,null,null,null,null,null,null,null,null,null,null,null,null,null,null,null,null,null,null,null,null,1.1000000000000001]
[null,null,null,null,null,null,null,null,null,null,null,null,null,null,null,null,null,null,null,null,null,null,null,null,null,null,null,null,1.1299999999999999]
[null,null,null,null,null,null,null,null,null,null,null,null,null,null,null,null,null,null,null,null,null,null,null,null,null,null,null,null,1.1499999999999999]
[null,null,null,null,null,null,null,null,null,null,null,null,null,null,null,null,null,null,null,null,null,null,null,null,null,null,null,null,1.18]
[null,null,null,null,null,null,null,null,null,null,null,null,null,null,null,null,null,null,null,null,null,null,null,null,null,null,null,null,1.21]
[null,null,null,null,null,null,null,null,null,null,null,null,null,null,null,null,null,null,null,null,null,null,null,null,null,null,null,null,1.24]
[null,null,null,null,null,null,null,null,null,null,null,null,null,null,null,null,null,null,null,null,null,null,null,null,null,null,null,null,1.27]
[null,null,null,null,null,null,null,null,null,null,null,null,null,null,null,null,null,null,null,null,null,null,null,null,null,null,null,null,1.3]
[null,null,null,null,null,null,null,null,null,null,null,null,null,null,null,null,null,null,null,null,null,null,null,null,null,null,null,null,1.33]
[null,null,null,null,null,null,null,null,null,null,null,null,null,null,null,null,null,null,null,null,null,null,null,null,null,null,null,null,1.37]
[null,null,null,null,null,null,null,null,null,null,null,null,null,null,null,null,null,null,null,null,null,null,null,null,null,null,null,null,1.4]
[null,null,null,null,null,null,null,null,null,null,null,null,null,null,null,null,null,null,null,null,null,null,null,null,null,null,null,null,1.43]
[null,null,null,null,null,null,null,null,null,null,null,null,null,null,null,null,null,null,null,null,null,null,null,null,null,null,null,null,1.47]
[null,null,null,null,null,null,null,null,null,null,null,null,null,null,null,null,null,null,null,null,null,null,null,null,null,null,null,null,1.5]
[null,null,null,null,null,null,null,null,null,null,null,null,null,null,null,null,null,null,null,null,null,null,null,null,null,null,null,null,1.54]
[null,null,null,null,null,null,null,null,null,null,null,null,null,null,null,null,null,null,null,null,null,null,null,null,null,null,null,null,1.58]
[null,null,null,null,null,null,null,null,null,null,null,null,null,null,null,null,null,null,null,null,null,null,null,null,null,null,null,null,1.62]
[null,null,null,null,null,null,null,null,null,null,null,null,null,null,null,null,null,null,null,null,null,null,null,null,null,null,null,null,1.65]
[null,null,null,null,null,null,null,null,null,null,null,null,null,null,null,null,null,null,null,null,null,null,null,null,null,null,null,null,1.69]
[null,null,null,null,null,null,null,null,null,null,null,null,null,null,null,null,null,null,null,null,null,null,null,null,null,null,null,null,1.74]
[null,null,null,null,null,null,null,null,null,null,null,null,null,null,null,null,null,null,null,null,null,null,null,null,null,null,null,null,1.78]
[null,null,null,null,null,null,null,null,null,null,null,null,null,null,null,null,null,null,null,null,null,null,null,null,null,null,null,null,1.82]
[null,null,null,null,null,null,null,null,null,null,null,null,null,null,null,null,null,null,null,null,null,null,null,null,null,null,null,null,1.87]
[null,null,null,null,null,null,null,null,null,null,null,null,null,null,null,null,null,null,null,null,null,null,null,null,null,null,null,null,1.91]
[null,null,null,null,null,null,null,null,null,null,null,null,null,null,null,null,null,null,null,null,null,null,null,null,null,null,null,null,1.96]
[null,null,null,null,null,null,null,null,null,null,null,null,null,null,null,null,null,null,null,null,null,null,null,null,null,null,null,null,2]
[null,null,null,null,null,null,null,null,null,null,null,null,null,null,null,null,null,null,null,null,null,null,null,null,null,null,null,null,2.0499999999999998]
[null,null,null,null,null,null,null,null,null,null,null,null,null,null,null,null,null,null,null,null,null,null,null,null,null,null,null,null,2.1]
[null,null,null,null,null,null,null,null,null,null,null,null,null,null,null,null,null,null,null,null,null,null,null,null,null,null,null,null,2.15]
[null,null,null,null,null,null,null,null,null,null,null,null,null,null,null,null,null,null,null,null,null,null,null,null,null,null,null,null,2.21]
[null,null,null,null,null,null,null,null,null,null,null,null,null,null,null,null,null,null,null,null,null,null,null,null,null,null,null,null,2.2599999999999998]
[null,null,null,null,null,null,null,null,null,null,null,null,null,null,null,null,null,null,null,null,null,null,null,null,null,null,null,null,2.3199999999999998]
[null,null,null,null,null,null,null,null,null,null,null,null,null,null,null,null,null,null,null,null,null,null,null,null,null,null,null,null,2.37]
[null,null,null,null,null,null,null,null,null,null,null,null,null,null,null,null,null,null,null,null,null,null,null,null,null,null,null,null,2.4300000000000002]
[null,null,null,null,null,null,null,null,null,null,null,null,null,null,null,null,null,null,null,null,null,null,null,null,null,null,null,null,2.4900000000000002]
[null,null,null,null,null,null,null,null,null,null,null,null,null,null,null,null,null,null,null,null,null,null,null,null,null,null,null,null,2.5499999999999998]
[null,null,null,null,null,null,null,null,null,null,null,null,null,null,null,null,null,null,null,null,null,null,null,null,null,null,null,null,2.61]
[null,null,null,null,null,null,null,null,null,null,null,null,null,null,null,null,null,null,null,null,null,null,null,null,null,null,null,null,2.67]
[null,null,null,null,null,null,null,null,null,null,null,null,null,null,null,null,null,null,null,null,null,null,null,null,null,null,null,null,2.74]
[null,null,null,null,null,null,null,null,null,null,null,null,null,null,null,null,null,null,null,null,null,null,null,null,null,null,null,null,2.8]
[null,null,null,null,null,null,null,null,null,null,null,null,null,null,null,null,null,null,null,null,null,null,null,null,null,null,null,null,2.87]
[null,null,null,null,null,null,null,null,null,null,null,null,null,null,null,null,null,null,null,null,null,null,null,null,null,null,null,null,2.94]
[null,null,null,null,null,null,null,null,null,null,null,null,null,null,null,null,null,null,null,null,null,null,null,null,null,null,null,null,3.01]
[null,null,null,null,null,null,null,null,null,null,null,null,null,null,null,null,null,null,null,null,null,null,null,null,null,null,null,null,3.09]
[null,null,null,null,null,null,null,null,null,null,null,null,null,null,null,null,null,null,null,null,null,null,null,null,null,null,null,null,3.16]
[null,null,null,null,null,null,null,null,null,null,null,null,null,null,null,null,null,null,null,null,null,null,null,null,null,null,null,null,3.24]
[null,null,null,null,null,null,null,null,null,null,null,null,null,null,null,null,null,null,null,null,null,null,null,null,null,null,null,null,3.32]
[null,null,null,null,null,null,null,null,null,null,null,null,null,null,null,null,null,null,null,null,null,null,null,null,null,null,null,null,3.4]
[null,null,null,null,null,null,null,null,null,null,null,null,null,null,null,null,null,null,null,null,null,null,null,null,null,null,null,null,3.48]
[null,null,null,null,null,null,null,null,null,null,null,null,null,null,null,null,null,null,null,null,null,null,null,null,null,null,null,null,3.57]
[null,null,null,null,null,null,null,null,null,null,null,null,null,null,null,null,null,null,null,null,null,null,null,null,null,null,null,null,3.65]
[null,null,null,null,null,null,null,null,null,null,null,null,null,null,null,null,null,null,null,null,null,null,null,null,null,null,null,null,3.74]
[null,null,null,null,null,null,null,null,null,null,null,null,null,null,null,null,null,null,null,null,null,null,null,null,null,null,null,null,3.83]
[null,null,null,null,null,null,null,null,null,null,null,null,null,null,null,null,null,null,null,null,null,null,null,null,null,null,null,null,3.92]
[null,null,null,null,null,null,null,null,null,null,null,null,null,null,null,null,null,null,null,null,null,null,null,null,null,null,null,null,4.0199999999999996]
[null,null,null,null,null,null,null,null,null,null,null,null,null,null,null,null,null,null,null,null,null,null,null,null,null,null,null,null,4.12]
[null,null,null,null,null,null,null,null,null,null,null,null,null,null,null,null,null,null,null,null,null,null,null,null,null,null,null,null,4.22]
[null,null,null,null,null,null,null,null,null,null,null,null,null,null,null,null,null,null,null,null,null,null,null,null,null,null,null,null,4.32]
[null,null,null,null,null,null,null,null,null,null,null,null,null,null,null,null,null,null,null,null,null,null,null,null,null,null,null,null,4.42]
[null,null,null,null,null,null,null,null,null,null,null,null,null,null,null,null,null,null,null,null,null,null,null,null,null,null,null,null,4.53]
[null,null,null,null,null,null,null,null,null,null,null,null,null,null,null,null,null,null,null,null,null,null,null,null,null,null,null,null,4.6399999999999997]
[null,null,null,null,null,null,null,null,null,null,null,null,null,null,null,null,null,null,null,null,null,null,null,null,null,null,null,null,4.75]
[null,null,null,null,null,null,null,null,null,null,null,null,null,null,null,null,null,null,null,null,null,null,null,null,null,null,null,null,4.87]
[null,null,null,null,null,null,null,null,null,null,null,null,null,null,null,null,null,null,null,null,null,null,null,null,null,null,null,null,4.99]
[null,null,null,null,null,null,null,null,null,null,null,null,null,null,null,null,null,null,null,null,null,null,null,null,null,null,null,null,5.1100000000000003]
[null,null,null,null,null,null,null,null,null,null,null,null,null,null,null,null,null,null,null,null,null,null,null,null,null,null,null,null,5.23]
[null,null,null,null,null,null,null,null,null,null,null,null,null,null,null,null,null,null,null,null,null,null,null,null,null,null,null,null,5.36]
[null,null,null,null,null,null,null,null,null,null,null,null,null,null,null,null,null,null,null,null,null,null,null,null,null,null,null,null,5.49]
[null,null,null,null,null,null,null,null,null,null,null,null,null,null,null,null,null,null,null,null,null,null,null,null,null,null,null,null,5.62]
[null,null,null,null,null,null,null,null,null,null,null,null,null,null,null,null,null,null,null,null,null,null,null,null,null,null,null,null,5.76]
[null,null,null,null,null,null,null,null,null,null,null,null,null,null,null,null,null,null,null,null,null,null,null,null,null,null,null,null,5.9]
[null,null,null,null,null,null,null,null,null,null,null,null,null,null,null,null,null,null,null,null,null,null,null,null,null,null,null,null,6.04]
[null,null,null,null,null,null,null,null,null,null,null,null,null,null,null,null,null,null,null,null,null,null,null,null,null,null,null,null,6.19]
[null,null,null,null,null,null,null,null,null,null,null,null,null,null,null,null,null,null,null,null,null,null,null,null,null,null,null,null,6.34]
[null,null,null,null,null,null,null,null,null,null,null,null,null,null,null,null,null,null,null,null,null,null,null,null,null,null,null,null,6.49]
[null,null,null,null,null,null,null,null,null,null,null,null,null,null,null,null,null,null,null,null,null,null,null,null,null,null,null,null,6.65]
[null,null,null,null,null,null,null,null,null,null,null,null,null,null,null,null,null,null,null,null,null,null,null,null,null,null,null,null,6.81]
[null,null,null,null,null,null,null,null,null,null,null,null,null,null,null,null,null,null,null,null,null,null,null,null,null,null,null,null,6.98]
[null,null,null,null,null,null,null,null,null,null,null,null,null,null,null,null,null,null,null,null,null,null,null,null,null,null,null,null,7.15]
[null,null,null,null,null,null,null,null,null,null,null,null,null,null,null,null,null,null,null,null,null,null,null,null,null,null,null,null,7.32]
[null,null,null,null,null,null,null,null,null,null,null,null,null,null,null,null,null,null,null,null,null,null,null,null,null,null,null,null,7.5]
[null,null,null,null,null,null,null,null,null,null,null,null,null,null,null,null,null,null,null,null,null,null,null,null,null,null,null,null,7.68]
[null,null,null,null,null,null,null,null,null,null,null,null,null,null,null,null,null,null,null,null,null,null,null,null,null,null,null,null,7.87]
[null,null,null,null,null,null,null,null,null,null,null,null,null,null,null,null,null,null,null,null,null,null,null,null,null,null,null,null,8.06]
[null,null,null,null,null,null,null,null,null,null,null,null,null,null,null,null,null,null,null,null,null,null,null,null,null,null,null,null,8.25]
[null,null,null,null,null,null,null,null,null,null,null,null,null,null,null,null,null,null,null,null,null,null,null,null,null,null,null,null,8.4499999999999993]
[null,null,null,null,null,null,null,null,null,null,null,null,null,null,null,null,null,null,null,null,null,null,null,null,null,null,null,null,8.66]
[null,null,null,null,null,null,null,null,null,null,null,null,null,null,null,null,null,null,null,null,null,null,null,null,null,null,null,null,8.8699999999999992]
[null,null,null,null,null,null,null,null,null,null,null,null,null,null,null,null,null,null,null,null,null,null,null,null,null,null,null,null,9.09]
[null,null,null,null,null,null,null,null,null,null,null,null,null,null,null,null,null,null,null,null,null,null,null,null,null,null,null,null,9.31]
[null,null,null,null,null,null,null,null,null,null,null,null,null,null,null,null,null,null,null,null,null,null,null,null,null,null,null,null,9.5299999999999994]
[null,null,null,null,null,null,null,null,null,null,null,null,null,null,null,null,null,null,null,null,null,null,null,null,null,null,null,null,9.76]
[null,null,null,null,null,null,null,null,null,null,null,null,null,null,null,null,null,null,null,null,null,null,null,null,null,null,null,null,10]
[null,null,null,null,null,null,null,null,null,null,null,null,null,null,null,null,null,null,null,null,null,null,null,null,null,null,null,null,10.199999999999999]
[null,null,null,null,null,null,null,null,null,null,null,null,null,null,null,null,null,null,null,null,null,null,null,null,null,null,null,null,10.5]
[null,null,null,null,null,null,null,null,null,null,null,null,null,null,null,null,null,null,null,null,null,null,null,null,null,null,null,null,10.7]
[null,null,null,null,null,null,null,null,null,null,null,null,null,null,null,null,null,null,null,null,null,null,null,null,null,null,null,null,11]
[null,null,null,null,null,null,null,null,null,null,null,null,null,null,null,null,null,null,null,null,null,null,null,null,null,null,null,null,11.3]
[null,null,null,null,null,null,null,null,null,null,null,null,null,null,null,null,null,null,null,null,null,null,null,null,null,null,null,null,11.5]
[null,null,null,null,null,null,null,null,null,null,null,null,null,null,null,null,null,null,null,null,null,null,null,null,null,null,null,null,11.8]
[null,null,null,null,null,null,null,null,null,null,null,null,null,null,null,null,null,null,null,null,null,null,null,null,null,null,null,null,12.1]
[null,null,null,null,null,null,null,null,null,null,null,null,null,null,null,null,null,null,null,null,null,null,null,null,null,null,null,null,12.4]
[null,null,null,null,null,null,null,null,null,null,null,null,null,null,null,null,null,null,null,null,null,null,null,null,null,null,null,null,12.7]
[null,null,null,null,null,null,null,null,null,null,null,null,null,null,null,null,null,null,null,null,null,null,null,null,null,null,null,null,13]
[null,null,null,null,null,null,null,null,null,null,null,null,null,null,null,null,null,null,null,null,null,null,null,null,null,null,null,null,13.3]
[null,null,null,null,null,null,null,null,null,null,null,null,null,null,null,null,null,null,null,null,null,null,null,null,null,null,null,null,13.7]
[null,null,null,null,null,null,null,null,null,null,null,null,null,null,null,null,null,null,null,null,null,null,null,null,null,null,null,null,14]
[null,null,null,null,null,null,null,null,null,null,null,null,null,null,null,null,null,null,null,null,null,null,null,null,null,null,null,null,14.3]
[null,null,null,null,null,null,null,null,null,null,null,null,null,null,null,null,null,null,null,null,null,null,null,null,null,null,null,null,14.7]
[null,null,null,null,null,null,null,null,null,null,null,null,null,null,null,null,null,null,null,null,null,null,null,null,null,null,null,null,15]
[null,null,null,null,null,null,null,null,null,null,null,null,null,null,null,null,null,null,null,null,null,null,null,null,null,null,null,null,15.4]
[null,null,null,null,null,null,null,null,null,null,null,null,null,null,null,null,null,null,null,null,null,null,null,null,null,null,null,null,15.8]
[null,null,null,null,null,null,null,null,null,null,null,null,null,null,null,null,null,null,null,null,null,null,null,null,null,null,null,null,16.2]
[null,null,null,null,null,null,null,null,null,null,null,null,null,null,null,null,null,null,null,null,null,null,null,null,null,null,null,null,16.5]
[null,null,null,null,null,null,null,null,null,null,null,null,null,null,null,null,null,null,null,null,null,null,null,null,null,null,null,null,16.899999999999999]
[null,null,null,null,null,null,null,null,null,null,null,null,null,null,null,null,null,null,null,null,null,null,null,null,null,null,null,null,17.399999999999999]
[null,null,null,null,null,null,null,null,null,null,null,null,null,null,null,null,null,null,null,null,null,null,null,null,null,null,null,null,17.8]
[null,null,null,null,null,null,null,null,null,null,null,null,null,null,null,null,null,null,null,null,null,null,null,null,null,null,null,null,18.2]
[null,null,null,null,null,null,null,null,null,null,null,null,null,null,null,null,null,null,null,null,null,null,null,null,null,null,null,null,18.7]
[null,null,null,null,null,null,null,null,null,null,null,null,null,null,null,null,null,null,null,null,null,null,null,null,null,null,null,null,19.100000000000001]
[null,null,null,null,null,null,null,null,null,null,null,null,null,null,null,null,null,null,null,null,null,null,null,null,null,null,null,null,19.600000000000001]
[null,null,null,null,null,null,null,null,null,null,null,null,null,null,null,null,null,null,null,null,null,null,null,null,null,null,null,null,20]
[null,null,null,null,null,null,null,null,null,null,null,null,null,null,null,null,null,null,null,null,null,null,null,null,null,null,null,null,20.5]
[null,null,null,null,null,null,null,null,null,null,null,null,null,null,null,null,null,null,null,null,null,null,null,null,null,null,null,null,21]
[null,null,null,null,null,null,null,null,null,null,null,null,null,null,null,null,null,null,null,null,null,null,null,null,null,null,null,null,21.5]
[null,null,null,null,null,null,null,null,null,null,null,null,null,null,null,null,null,null,null,null,null,null,null,null,null,null,null,null,22.1]
[null,null,null,null,null,null,null,null,null,null,null,null,null,null,null,null,null,null,null,null,null,null,null,null,null,null,null,null,22.6]
[null,null,null,null,null,null,null,null,null,null,null,null,null,null,null,null,null,null,null,null,null,null,null,null,null,null,null,null,23.2]
[null,null,null,null,null,null,null,null,null,null,null,null,null,null,null,null,null,null,null,null,null,null,null,null,null,null,null,null,23.7]
[null,null,null,null,null,null,null,null,null,null,null,null,null,null,null,null,null,null,null,null,null,null,null,null,null,null,null,null,24.3]
[null,null,null,null,null,null,null,null,null,null,null,null,null,null,null,null,null,null,null,null,null,null,null,null,null,null,null,null,24.9]
[null,null,null,null,null,null,null,null,null,null,null,null,null,null,null,null,null,null,null,null,null,null,null,null,null,null,null,null,25.5]
[null,null,null,null,null,null,null,null,null,null,null,null,null,null,null,null,null,null,null,null,null,null,null,null,null,null,null,null,26.1]
[null,null,null,null,null,null,null,null,null,null,null,null,null,null,null,null,null,null,null,null,null,null,null,null,null,null,null,null,26.7]
[null,null,null,null,null,null,null,null,null,null,null,null,null,null,null,null,null,null,null,null,null,null,null,null,null,null,null,null,27.4]
[null,null,null,null,null,null,null,null,null,null,null,null,null,null,null,null,null,null,null,null,null,null,null,null,null,null,null,null,28]
[null,null,null,null,null,null,null,null,null,null,null,null,null,null,null,null,null,null,null,null,null,null,null,null,null,null,null,null,28.7]
[null,null,null,null,null,null,null,null,null,null,null,null,null,null,null,null,null,null,null,null,null,null,null,null,null,null,null,null,29.4]
[null,null,null,null,null,null,null,null,null,null,null,null,null,null,null,null,null,null,null,null,null,null,null,null,null,null,null,null,30.1]
[null,null,null,null,null,null,null,null,null,null,null,null,null,null,null,null,null,null,null,null,null,null,null,null,null,null,null,null,30.9]
[null,null,null,null,null,null,null,null,null,null,null,null,null,null,null,null,null,null,null,null,null,null,null,null,null,null,null,null,31.6]
[null,null,null,null,null,null,null,null,null,null,null,null,null,null,null,null,null,null,null,null,null,null,null,null,null,null,null,null,32.4]
[null,null,null,null,null,null,null,null,null,null,null,null,null,null,null,null,null,null,null,null,null,null,null,null,null,null,null,null,33.200000000000003]
[null,null,null,null,null,null,null,null,null,null,null,null,null,null,null,null,null,null,null,null,null,null,null,null,null,null,null,null,34]
[null,null,null,null,null,null,null,null,null,null,null,null,null,null,null,null,null,null,null,null,null,null,null,null,null,null,null,null,34.799999999999997]
[null,null,null,null,null,null,null,null,null,null,null,null,null,null,null,null,null,null,null,null,null,null,null,null,null,null,null,null,35.700000000000003]
[null,null,null,null,null,null,null,null,null,null,null,null,null,null,null,null,null,null,null,null,null,null,null,null,null,null,null,null,36.5]
[null,null,null,null,null,null,null,null,null,null,null,null,null,null,null,null,null,null,null,null,null,null,null,null,null,null,null,null,37.4]
[null,null,null,null,null,null,null,null,null,null,null,null,null,null,null,null,null,null,null,null,null,null,null,null,null,null,null,null,38.299999999999997]
[null,null,null,null,null,null,null,null,null,null,null,null,null,null,null,null,null,null,null,null,null,null,null,null,null,null,null,null,39.200000000000003]
[null,null,null,null,null,null,null,null,null,null,null,null,null,null,null,null,null,null,null,null,null,null,null,null,null,null,null,null,40.200000000000003]
[null,null,null,null,null,null,null,null,null,null,null,null,null,null,null,null,null,null,null,null,null,null,null,null,null,null,null,null,41.2]
[null,null,null,null,null,null,null,null,null,null,null,null,null,null,null,null,null,null,null,null,null,null,null,null,null,null,null,null,42.2]
[null,null,null,null,null,null,null,null,null,null,null,null,null,null,null,null,null,null,null,null,null,null,null,null,null,null,null,null,43.2]
[null,null,null,null,null,null,null,null,null,null,null,null,null,null,null,null,null,null,null,null,null,null,null,null,null,null,null,null,44.2]
[null,null,null,null,null,null,null,null,null,null,null,null,null,null,null,null,null,null,null,null,null,null,null,null,null,null,null,null,45.3]
[null,null,null,null,null,null,null,null,null,null,null,null,null,null,null,null,null,null,null,null,null,null,null,null,null,null,null,null,46.4]
[null,null,null,null,null,null,null,null,null,null,null,null,null,null,null,null,null,null,null,null,null,null,null,null,null,null,null,null,47.5]
[null,null,null,null,null,null,null,null,null,null,null,null,null,null,null,null,null,null,null,null,null,null,null,null,null,null,null,null,48.7]
[null,null,null,null,null,null,null,null,null,null,null,null,null,null,null,null,null,null,null,null,null,null,null,null,null,null,null,null,49.9]
[null,null,null,null,null,null,null,null,null,null,null,null,null,null,null,null,null,null,null,null,null,null,null,null,null,null,null,null,51.1]
[null,null,null,null,null,null,null,null,null,null,null,null,null,null,null,null,null,null,null,null,null,null,null,null,null,null,null,null,52.3]
[null,null,null,null,null,null,null,null,null,null,null,null,null,null,null,null,null,null,null,null,null,null,null,null,null,null,null,null,53.6]
[null,null,null,null,null,null,null,null,null,null,null,null,null,null,null,null,null,null,null,null,null,null,null,null,null,null,null,null,54.9]
[null,null,null,null,null,null,null,null,null,null,null,null,null,null,null,null,null,null,null,null,null,null,null,null,null,null,null,null,56.2]
[null,null,null,null,null,null,null,null,null,null,null,null,null,null,null,null,null,null,null,null,null,null,null,null,null,null,null,null,57.6]
[null,null,null,null,null,null,null,null,null,null,null,null,null,null,null,null,null,null,null,null,null,null,null,null,null,null,null,null,59]
[null,null,null,null,null,null,null,null,null,null,null,null,null,null,null,null,null,null,null,null,null,null,null,null,null,null,null,null,60.4]
[null,null,null,null,null,null,null,null,null,null,null,null,null,null,null,null,null,null,null,null,null,null,null,null,null,null,null,null,61.9]
[null,null,null,null,null,null,null,null,null,null,null,null,null,null,null,null,null,null,null,null,null,null,null,null,null,null,null,null,63.4]
[null,null,null,null,null,null,null,null,null,null,null,null,null,null,null,null,null,null,null,null,null,null,null,null,null,null,null,null,64.900000000000006]
[null,null,null,null,null,null,null,null,null,null,null,null,null,null,null,null,null,null,null,null,null,null,null,null,null,null,null,null,66.5]
[null,null,null,null,null,null,null,null,null,null,null,null,null,null,null,null,null,null,null,null,null,null,null,null,null,null,null,null,68.099999999999994]
[null,null,null,null,null,null,null,null,null,null,null,null,null,null,null,null,null,null,null,null,null,null,null,null,null,null,null,null,69.8]
[null,null,null,null,null,null,null,null,null,null,null,null,null,null,null,null,null,null,null,null,null,null,null,null,null,null,null,null,71.5]
[null,null,null,null,null,null,null,null,null,null,null,null,null,null,null,null,null,null,null,null,null,null,null,null,null,null,null,null,73.2]
[null,null,null,null,null,null,null,null,null,null,null,null,null,null,null,null,null,null,null,null,null,null,null,null,null,null,null,null,75]
[null,null,null,null,null,null,null,null,null,null,null,null,null,null,null,null,null,null,null,null,null,null,null,null,null,null,null,null,76.8]
[null,null,null,null,null,null,null,null,null,null,null,null,null,null,null,null,null,null,null,null,null,null,null,null,null,null,null,null,78.7]
[null,null,null,null,null,null,null,null,null,null,null,null,null,null,null,null,null,null,null,null,null,null,null,null,null,null,null,null,80.599999999999994]
[null,null,null,null,null,null,null,null,null,null,null,null,null,null,null,null,null,null,null,null,null,null,null,null,null,null,null,null,82.5]
[null,null,null,null,null,null,null,null,null,null,null,null,null,null,null,null,null,null,null,null,null,null,null,null,null,null,null,null,84.5]
[null,null,null,null,null,null,null,null,null,null,null,null,null,null,null,null,null,null,null,null,null,null,null,null,null,null,null,null,86.6]
[null,null,null,null,null,null,null,null,null,null,null,null,null,null,null,null,null,null,null,null,null,null,null,null,null,null,null,null,88.7]
[null,null,null,null,null,null,null,null,null,null,null,null,null,null,null,null,null,null,null,null,null,null,null,null,null,null,null,null,90.9]
[null,null,null,null,null,null,null,null,null,null,null,null,null,null,null,null,null,null,null,null,null,null,null,null,null,null,null,null,93.1]
[null,null,null,null,null,null,null,null,null,null,null,null,null,null,null,null,null,null,null,null,null,null,null,null,null,null,null,null,95.3]
[null,null,null,null,null,null,null,null,null,null,null,null,null,null,null,null,null,null,null,null,null,null,null,null,null,null,null,null,97.6]
[null,null,null,null,null,null,null,null,null,null,null,null,null,null,null,null,null,null,null,null,null,null,null,null,null,null,null,null,{"$f":"AC290*100","v":100}]
[null,null,null,null,null,null,null,null,null,null,null,null,null,null,null,null,null,null,null,null,null,null,null,null,null,null,null,null,102]
[null,null,null,null,null,null,null,null,null,null,null,null,null,null,null,null,null,null,null,null,null,null,null,null,null,null,null,null,105]
[null,null,null,null,null,null,null,null,null,null,null,null,null,null,null,null,null,null,null,null,null,null,null,null,null,null,null,null,107]
[null,null,null,null,null,null,null,null,null,null,null,null,null,null,null,null,null,null,null,null,null,null,null,null,null,null,null,null,110.00000000000001]
[null,null,null,null,null,null,null,null,null,null,null,null,null,null,null,null,null,null,null,null,null,null,null,null,null,null,null,null,112.99999999999999]
[null,null,null,null,null,null,null,null,null,null,null,null,null,null,null,null,null,null,null,null,null,null,null,null,null,null,null,null,114.99999999999999]
[null,null,null,null,null,null,null,null,null,null,null,null,null,null,null,null,null,null,null,null,null,null,null,null,null,null,null,null,118]
[null,null,null,null,null,null,null,null,null,null,null,null,null,null,null,null,null,null,null,null,null,null,null,null,null,null,null,null,121]
[null,null,null,null,null,null,null,null,null,null,null,null,null,null,null,null,null,null,null,null,null,null,null,null,null,null,null,null,124]
[null,null,null,null,null,null,null,null,null,null,null,null,null,null,null,null,null,null,null,null,null,null,null,null,null,null,null,null,127]
[null,null,null,null,null,null,null,null,null,null,null,null,null,null,null,null,null,null,null,null,null,null,null,null,null,null,null,null,130]
[null,null,null,null,null,null,null,null,null,null,null,null,null,null,null,null,null,null,null,null,null,null,null,null,null,null,null,null,133]
[null,null,null,null,null,null,null,null,null,null,null,null,null,null,null,null,null,null,null,null,null,null,null,null,null,null,null,null,137]
[null,null,null,null,null,null,null,null,null,null,null,null,null,null,null,null,null,null,null,null,null,null,null,null,null,null,null,null,140]
[null,null,null,null,null,null,null,null,null,null,null,null,null,null,null,null,null,null,null,null,null,null,null,null,null,null,null,null,143]
[null,null,null,null,null,null,null,null,null,null,null,null,null,null,null,null,null,null,null,null,null,null,null,null,null,null,null,null,147]
[null,null,null,null,null,null,null,null,null,null,null,null,null,null,null,null,null,null,null,null,null,null,null,null,null,null,null,null,150]
[null,null,null,null,null,null,null,null,null,null,null,null,null,null,null,null,null,null,null,null,null,null,null,null,null,null,null,null,154]
[null,null,null,null,null,null,null,null,null,null,null,null,null,null,null,null,null,null,null,null,null,null,null,null,null,null,null,null,158]
[null,null,null,null,null,null,null,null,null,null,null,null,null,null,null,null,null,null,null,null,null,null,null,null,null,null,null,null,162]
[null,null,null,null,null,null,null,null,null,null,null,null,null,null,null,null,null,null,null,null,null,null,null,null,null,null,null,null,165]
[null,null,null,null,null,null,null,null,null,null,null,null,null,null,null,null,null,null,null,null,null,null,null,null,null,null,null,null,169]
[null,null,null,null,null,null,null,null,null,null,null,null,null,null,null,null,null,null,null,null,null,null,null,null,null,null,null,null,174]
[null,null,null,null,null,null,null,null,null,null,null,null,null,null,null,null,null,null,null,null,null,null,null,null,null,null,null,null,178]
[null,null,null,null,null,null,null,null,null,null,null,null,null,null,null,null,null,null,null,null,null,null,null,null,null,null,null,null,182]
[null,null,null,null,null,null,null,null,null,null,null,null,null,null,null,null,null,null,null,null,null,null,null,null,null,null,null,null,187]
[null,null,null,null,null,null,null,null,null,null,null,null,null,null,null,null,null,null,null,null,null,null,null,null,null,null,null,null,191]
[null,null,null,null,null,null,null,null,null,null,null,null,null,null,null,null,null,null,null,null,null,null,null,null,null,null,null,null,196]
[null,null,null,null,null,null,null,null,null,null,null,null,null,null,null,null,null,null,null,null,null,null,null,null,null,null,null,null,200]
[null,null,null,null,null,null,null,null,null,null,null,null,null,null,null,null,null,null,null,null,null,null,null,null,null,null,null,null,204.99999999999997]
[null,null,null,null,null,null,null,null,null,null,null,null,null,null,null,null,null,null,null,null,null,null,null,null,null,null,null,null,210]
[null,null,null,null,null,null,null,null,null,null,null,null,null,null,null,null,null,null,null,null,null,null,null,null,null,null,null,null,215]
[null,null,null,null,null,null,null,null,null,null,null,null,null,null,null,null,null,null,null,null,null,null,null,null,null,null,null,null,221]
[null,null,null,null,null,null,null,null,null,null,null,null,null,null,null,null,null,null,null,null,null,null,null,null,null,null,null,null,225.99999999999997]
[null,null,null,null,null,null,null,null,null,null,null,null,null,null,null,null,null,null,null,null,null,null,null,null,null,null,null,null,231.99999999999997]
[null,null,null,null,null,null,null,null,null,null,null,null,null,null,null,null,null,null,null,null,null,null,null,null,null,null,null,null,237]
[null,null,null,null,null,null,null,null,null,null,null,null,null,null,null,null,null,null,null,null,null,null,null,null,null,null,null,null,243.00000000000003]
[null,null,null,null,null,null,null,null,null,null,null,null,null,null,null,null,null,null,null,null,null,null,null,null,null,null,null,null,249.00000000000003]
[null,null,null,null,null,null,null,null,null,null,null,null,null,null,null,null,null,null,null,null,null,null,null,null,null,null,null,null,254.99999999999997]
[null,null,null,null,null,null,null,null,null,null,null,null,null,null,null,null,null,null,null,null,null,null,null,null,null,null,null,null,261]
[null,null,null,null,null,null,null,null,null,null,null,null,null,null,null,null,null,null,null,null,null,null,null,null,null,null,null,null,267]
[null,null,null,null,null,null,null,null,null,null,null,null,null,null,null,null,null,null,null,null,null,null,null,null,null,null,null,null,274]
[null,null,null,null,null,null,null,null,null,null,null,null,null,null,null,null,null,null,null,null,null,null,null,null,null,null,null,null,280]
[null,null,null,null,null,null,null,null,null,null,null,null,null,null,null,null,null,null,null,null,null,null,null,null,null,null,null,null,287]
[null,null,null,null,null,null,null,null,null,null,null,null,null,null,null,null,null,null,null,null,null,null,null,null,null,null,null,null,294]
[null,null,null,null,null,null,null,null,null,null,null,null,null,null,null,null,null,null,null,null,null,null,null,null,null,null,null,null,301]
[null,null,null,null,null,null,null,null,null,null,null,null,null,null,null,null,null,null,null,null,null,null,null,null,null,null,null,null,309]
[null,null,null,null,null,null,null,null,null,null,null,null,null,null,null,null,null,null,null,null,null,null,null,null,null,null,null,null,316]
[null,null,null,null,null,null,null,null,null,null,null,null,null,null,null,null,null,null,null,null,null,null,null,null,null,null,null,null,324]
[null,null,null,null,null,null,null,null,null,null,null,null,null,null,null,null,null,null,null,null,null,null,null,null,null,null,null,null,332]
[null,null,null,null,null,null,null,null,null,null,null,null,null,null,null,null,null,null,null,null,null,null,null,null,null,null,null,null,340]
[null,null,null,null,null,null,null,null,null,null,null,null,null,null,null,null,null,null,null,null,null,null,null,null,null,null,null,null,348]
[null,null,null,null,null,null,null,null,null,null,null,null,null,null,null,null,null,null,null,null,null,null,null,null,null,null,null,null,357]
[null,null,null,null,null,null,null,null,null,null,null,null,null,null,null,null,null,null,null,null,null,null,null,null,null,null,null,null,365]
[null,null,null,null,null,null,null,null,null,null,null,null,null,null,null,null,null,null,null,null,null,null,null,null,null,null,null,null,374]
[null,null,null,null,null,null,null,null,null,null,null,null,null,null,null,null,null,null,null,null,null,null,null,null,null,null,null,null,383]
[null,null,null,null,null,null,null,null,null,null,null,null,null,null,null,null,null,null,null,null,null,null,null,null,null,null,null,null,392]
[null,null,null,null,null,null,null,null,null,null,null,null,null,null,null,null,null,null,null,null,null,null,null,null,null,null,null,null,401.99999999999994]
[null,null,null,null,null,null,null,null,null,null,null,null,null,null,null,null,null,null,null,null,null,null,null,null,null,null,null,null,412]
[null,null,null,null,null,null,null,null,null,null,null,null,null,null,null,null,null,null,null,null,null,null,null,null,null,null,null,null,422]
[null,null,null,null,null,null,null,null,null,null,null,null,null,null,null,null,null,null,null,null,null,null,null,null,null,null,null,null,432]
[null,null,null,null,null,null,null,null,null,null,null,null,null,null,null,null,null,null,null,null,null,null,null,null,null,null,null,null,442]
[null,null,null,null,null,null,null,null,null,null,null,null,null,null,null,null,null,null,null,null,null,null,null,null,null,null,null,null,453]
[null,null,null,null,null,null,null,null,null,null,null,null,null,null,null,null,null,null,null,null,null,null,null,null,null,null,null,null,{"$f":"AC354*100","v":463.99999999999994}]
[null,null,null,null,null,null,null,null,null,null,null,null,null,null,null,null,null,null,null,null,null,null,null,null,null,null,null,null,475]
[null,null,null,null,null,null,null,null,null,null,null,null,null,null,null,null,null,null,null,null,null,null,null,null,null,null,null,null,487]
[null,null,null,null,null,null,null,null,null,null,null,null,null,null,null,null,null,null,null,null,null,null,null,null,null,null,null,null,499]
[null,null,null,null,null,null,null,null,null,null,null,null,null,null,null,null,null,null,null,null,null,null,null,null,null,null,null,null,511.00000000000006]
[null,null,null,null,null,null,null,null,null,null,null,null,null,null,null,null,null,null,null,null,null,null,null,null,null,null,null,null,523]
[null,null,null,null,null,null,null,null,null,null,null,null,null,null,null,null,null,null,null,null,null,null,null,null,null,null,null,null,536]
[null,null,null,null,null,null,null,null,null,null,null,null,null,null,null,null,null,null,null,null,null,null,null,null,null,null,null,null,549]
[null,null,null,null,null,null,null,null,null,null,null,null,null,null,null,null,null,null,null,null,null,null,null,null,null,null,null,null,562]
[null,null,null,null,null,null,null,null,null,null,null,null,null,null,null,null,null,null,null,null,null,null,null,null,null,null,null,null,576]
[null,null,null,null,null,null,null,null,null,null,null,null,null,null,null,null,null,null,null,null,null,null,null,null,null,null,null,null,590]
[null,null,null,null,null,null,null,null,null,null,null,null,null,null,null,null,null,null,null,null,null,null,null,null,null,null,null,null,604]
[null,null,null,null,null,null,null,null,null,null,null,null,null,null,null,null,null,null,null,null,null,null,null,null,null,null,null,null,619]
[null,null,null,null,null,null,null,null,null,null,null,null,null,null,null,null,null,null,null,null,null,null,null,null,null,null,null,null,634]
[null,null,null,null,null,null,null,null,null,null,null,null,null,null,null,null,null,null,null,null,null,null,null,null,null,null,null,null,649]
[null,null,null,null,null,null,null,null,null,null,null,null,null,null,null,null,null,null,null,null,null,null,null,null,null,null,null,null,665]
[null,null,null,null,null,null,null,null,null,null,null,null,null,null,null,null,null,null,null,null,null,null,null,null,null,null,null,null,681]
[null,null,null,null,null,null,null,null,null,null,null,null,null,null,null,null,null,null,null,null,null,null,null,null,null,null,null,null,698]
[null,null,null,null,null,null,null,null,null,null,null,null,null,null,null,null,null,null,null,null,null,null,null,null,null,null,null,null,715]
[null,null,null,null,null,null,null,null,null,null,null,null,null,null,null,null,null,null,null,null,null,null,null,null,null,null,null,null,732]
[null,null,null,null,null,null,null,null,null,null,null,null,null,null,null,null,null,null,null,null,null,null,null,null,null,null,null,null,750]
[null,null,null,null,null,null,null,null,null,null,null,null,null,null,null,null,null,null,null,null,null,null,null,null,null,null,null,null,768]
[null,null,null,null,null,null,null,null,null,null,null,null,null,null,null,null,null,null,null,null,null,null,null,null,null,null,null,null,787]
[null,null,null,null,null,null,null,null,null,null,null,null,null,null,null,null,null,null,null,null,null,null,null,null,null,null,null,null,806]
[null,null,null,null,null,null,null,null,null,null,null,null,null,null,null,null,null,null,null,null,null,null,null,null,null,null,null,null,825]
[null,null,null,null,null,null,null,null,null,null,null,null,null,null,null,null,null,null,null,null,null,null,null,null,null,null,null,null,844.99999999999989]
[null,null,null,null,null,null,null,null,null,null,null,null,null,null,null,null,null,null,null,null,null,null,null,null,null,null,null,null,866]
[null,null,null,null,null,null,null,null,null,null,null,null,null,null,null,null,null,null,null,null,null,null,null,null,null,null,null,null,886.99999999999989]
[null,null,null,null,null,null,null,null,null,null,null,null,null,null,null,null,null,null,null,null,null,null,null,null,null,null,null,null,909]
[null,null,null,null,null,null,null,null,null,null,null,null,null,null,null,null,null,null,null,null,null,null,null,null,null,null,null,null,931]
[null,null,null,null,null,null,null,null,null,null,null,null,null,null,null,null,null,null,null,null,null,null,null,null,null,null,null,null,952.99999999999989]
[null,null,null,null,null,null,null,null,null,null,null,null,null,null,null,null,null,null,null,null,null,null,null,null,null,null,null,null,976]
[null,null,null,null,null,null,null,null,null,null,null,null,null,null,null,null,null,null,null,null,null,null,null,null,null,null,null,null,1000]

{"sheet":"revisionNotes","index":7,"n_rows":2,"n_cols":2,"rows_kept":2,"cut":false,"hidden":false,"merged":[]}
["Date","Change"]
["2022-02-02","Remove 4C27 support, clean up drop downs and units"]

{"sheet":"Disclaimer","index":8,"n_rows":6,"n_cols":2,"rows_kept":6,"cut":false,"hidden":false,"merged":[]}
[]
[null,"Important notice and disclaimer"]
[null,"TI PROVIDES TECHNICAL AND RELIABILITY DATA (INCLUDING DATASHEETS), DESIGN RESOURCES (INCLUDING REFERENCE DESIGNS), APPLICATION OR OTHER DESIGN ADVICE, WEB TOOLS, SAFETY INFORMATION, AND OTHER RESOURCES “AS IS” AND WITH ALL FAULTS, AND DISCLAIMS ALL WARRANTIES, EXPRESS AND IMPLIED, INCLUDING WITHOUT LIMITATION ANY IMPLIED WARRANTIES OF MERCHANTABILITY, FITNESS FOR A PARTICULAR PURPOSE OR NON-INFRINGEMENT OF THIRD PARTY INTELLECTUAL PROPERTY RIGHTS."]
[null,"These resources are intended for skilled developers designing with TI products. You are solely responsible for (1) selecting the appropriate TI products for your application, (2) designing, validating and testing your application, and (3) ensuring your application meets applicable standards, and any other safety, security, or other requirements."]
[null,"These resources are subject to change without notice. TI grants you permission to use these resources only for development of an application that uses the TI products described in the resource. Other reproduction and display of these resources is prohibited. No license is granted to any other TI intellectual property right or to any third party intellectual property right. TI disclaims responsibility for, and you will fully indemnify TI and its representatives against, any claims, damages, costs, losses, and liabilities arising out of your use of these resources."]
[null,"TI’s products are provided subject to TI’s Terms of Sale or other applicable terms available either on ti.com or provided in conjunction with such TI products. TI’s provision of these resources does not expand or otherwise alter TI’s applicable warranties or warranty disclaimers for TI products."]